Workbook

Sheet SolCompra
A1: Carrito - Compra por catálogo
A3: Instrumento de Agregación de Demanda para la adquisición de servicios RENATA
A4: Versión: 4 | B4: 2018-11-30
A5: Información de la Entidad Compradora
A7: Nombre de la Entidad: | J7: NIT:
A9: Dirección de la Entidad: | J9: Municipio:
A11: Nombre del Comprador: | J11: Teléfono:
A13: Correo del comprador:
A15: Fechas estimadas
C17: Fecha de generación de la Compra:
A21: Artículos Solicitud de Cotización
C23: Filas a agregar o eliminar:
C25: 1
A26: Solicitud
A27: Item | B27: Referencia | C27: Categoría | D27: Municipios | E27: Característica 1 BW Red Académica | F27: Característica 2 BW internet | G27: Departamento | H27: Municipio | I27: Dirección de entrega | J27: Cantidad | K27: Unidad | L27: Cantidad Metros Instalación | M27: Unidad | N27: % Gravámen
A28: 1 | B28: =VLOOKUP($C28,Consolidado!$A:$AE,2,0) ->  | K28: =VLOOKUP($C28,Consolidado!$A:$AE,8,0) -> 

Sheet ResumenCompra
A1: Carrito - Compra por catálogo
A3: Instrumento de Agregación de Demanda para la adquisición de servicios RENATA
A5: Información de la Entidad Compradora
A7: Nombre de la Entidad: | J7: NIT:
A9: Dirección de la Entidad: | J9: Municipio:
A11: Nombre del Comprador: | J11: Teléfono:
A13: Correo del comprador:
A15: Fechas estimadas
C17: Fecha de generación de la Compra:
A21: Artículos Solicitud de Cotización
A26: Solicitud | O26: Servicio | R26: Instalación | U26: Totales
A27: Item | B27: Referencia | C27: Categoría | D27: Municipios | E27: Característica 1 BW Red Académica | F27: Característica 2 BW internet | G27: Departamento | H27: Municipio | I27: Dirección de entrega | J27: Cantidad | K27: Unidad | L27: Cantidad Metros Instalación | M27: Unidad | N27: % Gravámen | O27: Precio | P27: Precios máximo | Q27: Total | R27: Precio | S27: Precios máximo | T27: Total | V27: LlaveTVEC
A28: 1 | B28: =VLOOKUP($C28&$D28&$E28&$F28,Consolidado!$A:$AE,2,0) ->  | P28: =ROUND($O28/(1-$N28),2) -> 0 | Q28: =P28*J28 -> 0 | R28: =IF($C28="Servicios Académicos Renata",VLOOKUP($B28,Consolidado!$B:$AE,30,0),0) -> 0 | S28: =ROUND($R28/(1-$N28),2) -> 0 | T28: =S28*L28 -> 0 | U28: =T28+Q28 -> 0 | V28: =IF($C28="Servicios Académicos Renata",$B28&" "&$C28&" "&columnMes($J28) &" Meses",$B28&" "&$C28) -> 
P29: Subtotal | Q29: =SUM($Q$28:Q28) -> 0 | S29: Subtotal | T29: =SUM($T$28:T28) -> 0 | U29: =SUM($U$28:U28) -> 0
P30: IVA | Q30: =ROUND(Q29*19%,2) -> 0 | S30: IVA | T30: =ROUND(T29*19%,2) -> 0 | U30: =ROUND(U29*19%,2) -> 0
P31: Total | Q31: =SUM(Q29:Q30) -> 0 | S31: Total | T31: =SUM(T29:T30) -> 0 | U31: =SUM(U29:U30) -> 0

Sheet CuadrosTotales (hidden)
A1: Servicio | D1: Instalación | G1: Totales
A2: Precio | B2: Precios máximo | C2: Total | D2: Precio | E2: Precios máximo | F2: Total
B4: Subtotal | C4: =SUM(C3:C3) -> 0 | E4: Subtotal | F4: =SUM(F3:F3) -> 0 | G4: =SUM(G3:G3) -> 0
B5: IVA | C5: =ROUND(C4*19%,2) -> 0 | E5: IVA | F5: =ROUND(F4*19%,2) -> 0 | G5: =ROUND(G4*19%,2) -> 0
B6: Total | C6: =SUM(C4:C5) -> 0 | E6: Total | F6: =SUM(F4:F5) -> 0 | G6: =SUM(G4:G5) -> 0

Sheet ResumenCompraCONIVA (hidden)
A1: Carrito - Compra por catálogo
A3: Instrumento de Agregación de Demanda para la adquisición de servicios RENATA
A4: Versión: 1 | B4: 2018-01-04
A5: Información de la Entidad Compradora
A7: Nombre de la Entidad: | J7: NIT:
A9: Dirección de la Entidad: | J9: Municipio:
A11: Nombre del Comprador: | J11: Teléfono:
A13: Correo del comprador:
A15: Fechas estimadas
C17: Fecha de generación de la Compra:
A21: Artículos Solicitud de Cotización
A26: Solicitud | O26: Servicio | S26: Instalación | W26: Totales
A27: Item | B27: Referencia | C27: Categoría | D27: Municipios | E27: Característica 1 BW Red Académica | F27: Característica 2 BW internet | G27: Departamento | H27: Municipio | I27: Dirección de entrega | J27: Cantidad | K27: Unidad | L27: Cantidad Metros Instalación | M27: Unidad | N27: % Gravámen | O27: Precio | P27: Precio base | Q27: Precios máximo | R27: Total | S27: Precio | T27: Precio base | U27: Precios máximo | V27: Total
A28: 1 | C28: Servicios Académicos Renata | D28: 5 | E28: 20 | F28: 0 | G28: Bolivar | H28: Arjona | I28: ttt | J28: 10 | K28: Mes | L28: 10 | M28: Metros | N28: 0.02 | O28: 2400000 | P28: =(O28/1.19) -> 2016806.723 | Q28: =ROUND(P28/(1-$N28),2) -> 2057966.04 | R28: =Q28*J28 -> 20579660.4 | S28: 500 | T28: =(S28/1.19) -> 420.1680672 | U28: =ROUND(T28/(1-$N28),2) -> 428.74 | V28: =U28*L28 -> 4287.4 | W28: =V28+R28 -> 20583947.8
A29: 2 | C29: Colfire | J29: 1 | K29: Und | N29: 0.02 | O29: 2400000 | P29: =(O29/1.19) -> 2016806.723 | Q29: =ROUND(P29/(1-$N29),2) -> 2057966.04 | R29: =Q29*J29 -> 2057966.04 | S29: 0 | T29: =(S29/1.19) -> 0 | U29: =ROUND(T29/(1-$N29),2) -> 0 | V29: =U29*L29 -> 0 | W29: =V29+R29 -> 2057966.04
A30: 3 | C30: Eduroam | J30: 1 | K30: Und | N30: 0.02 | O30: 2400000 | P30: 2016806.723 | Q30: 2057966.04 | R30: 2057966.04 | S30: 0 | T30: 0 | U30: 0 | V30: 0 | W30: 2057966.04
Q31: Subtotal | R31: =SUM(R28:R30) -> 24695592.48 | U31: Subtotal | V31: =SUM(V28:V30) -> 4287.4 | W31: =SUM(W28:W30) -> 24699879.88
Q32: Iva | R32: =ROUND(R31*19%,2) -> 4692162.57 | U32: Iva | V32: =ROUND(V31*19%,2) -> 814.61 | W32: =ROUND(W31*19%,2) -> 4692977.18
Q33: Total | R33: =SUM(R31:R32) -> 29387755.05 | U33: Total | V33: =SUM(V31:V32) -> 5102.01 | W33: =SUM(W31:W32) -> 29392857.06

Sheet ResumenCompraSINIVA (hidden)
A1: Carrito - Compra por catálogo
A3: Instrumento de Agregación de Demanda para la adquisición de servicios RENATA
A4: Versión: 1 | B4: 2018-01-04
A5: Información de la Entidad Compradora
A7: Nombre de la Entidad: | J7: NIT:
A9: Dirección de la Entidad: | J9: Municipio:
A11: Nombre del Comprador: | J11: Teléfono:
A13: Correo del comprador:
A15: Fechas estimadas
C17: Fecha de generación de la Compra:
A21: Artículos Solicitud de Cotización
A26: Solicitud | O26: Servicio | R26: Instalación | U26: Totales
A27: Item | B27: Referencia | C27: Categoría | D27: Municipios | E27: Característica 1 BW Red Académica | F27: Característica 2 BW internet | G27: Departamento | H27: Municipio | I27: Dirección de entrega | J27: Cantidad | K27: Unidad | L27: Cantidad Metros Instalación | M27: Unidad | N27: % Gravámen | O27: Precio | P27: Precios máximo | Q27: Total | R27: Precio | S27: Precios máximo | T27: Total
A28: 1 | C28: Servicios Académicos Renata | D28: 5 | E28: 20 | F28: 0 | G28: Bolivar | H28: Arjona | I28: ttt | J28: 10 | K28: Mes | L28: 10 | M28: Metros | N28: 0.02 | O28: 2400000 | P28: =ROUND($O28/(1-$N28),2) -> 2448979.59 | Q28: =P28*J28 -> 24489795.9 | R28: 500 | S28: =ROUND($R28/(1-$N28),2) -> 510.2 | T28: =S28*L28 -> 5102 | U28: =T28+Q28 -> 24494897.9
A29: 2 | C29: Colfire | J29: 1 | K29: Und | N29: 0.02 | O29: 2400000 | P29: =ROUND($O29/(1-$N29),2) -> 2448979.59 | Q29: =P29*J29 -> 2448979.59 | R29: 0 | S29: =ROUND($R29/(1-$N29),2) -> 0 | T29: =S29*L29 -> 0 | U29: =T29+Q29 -> 2448979.59
A30: 3 | C30: Eduroam | J30: 1 | K30: Und | N30: 0.02 | O30: 2400000 | P30: 2448979.59 | Q30: 2448979.59 | R30: 0 | S30: 0 | T30: 0 | U30: =T30+Q30 -> 2448979.59
P31: Subtotal | Q31: =SUM(Q28:Q30) -> 29387755.08 | S31: Subtotal | T31: =SUM(T28:T30) -> 5102 | U31: =SUM(U28:U30) -> 29392857.08
P32: Iva | Q32: =ROUND(Q31*19%,2) -> 5583673.47 | S32: Iva | T32: =ROUND(T31*19%,2) -> 969.38 | U32: =ROUND(U31*19%,2) -> 5584642.85
P33: Total | Q33: =SUM(Q31:Q32) -> 34971428.55 | S33: Total | T33: =SUM(T31:T32) -> 6071.38 | U33: =SUM(U31:U32) -> 34977499.93

Sheet Listas (hidden)
A1: Categoria | B1: ServiciosAcadémicosRenataMunicipios | C1: ServiciosAcadémicosRenataMunicipios1 | D1: ServiciosAcadémicosRenataMunicipios2 | E1: ServiciosAcadémicosRenataMunicipios3 | F1: ServiciosAcadémicosRenataMunicipios4 | G1: ServiciosAcadémicosRenataMunicipios5 | H1: ServiciosAcadémicosRenataMunicipios120 | I1: ServiciosAcadémicosRenataMunicipios130 | J1: ServiciosAcadémicosRenataMunicipios140 | K1: ServiciosAcadémicosRenataMunicipios150 | L1: ServiciosAcadémicosRenataMunicipios1100 | M1: ServiciosAcadémicosRenataMunicipios1150 | N1: ServiciosAcadémicosRenataMunicipios1200 | O1: ServiciosAcadémicosRenataMunicipios1250 | P1: ServiciosAcadémicosRenataMunicipios1300 | Q1: ServiciosAcadémicosRenataMunicipios1350 | R1: ServiciosAcadémicosRenataMunicipios1400 | S1: ServiciosAcadémicosRenataMunicipios1450 | T1: ServiciosAcadémicosRenataMunicipios1500 | U1: ServiciosAcadémicosRenataMunicipios1600 | V1: ServiciosAcadémicosRenataMunicipios1650 | W1: ServiciosAcadémicosRenataMunicipios1700 | X1: ServiciosAcadémicosRenataMunicipios1800 | Y1: ServiciosAcadémicosRenataMunicipios1900 | Z1: ServiciosAcadémicosRenataMunicipios11000 | AA1: ServiciosAcadémicosRenataMunicipios250 | AB1: ServiciosAcadémicosRenataMunicipios2100 | AC1: ServiciosAcadémicosRenataMunicipios2150 | AD1: ServiciosAcadémicosRenataMunicipios2200 | AE1: ServiciosAcadémicosRenataMunicipios2250 | AF1: ServiciosAcadémicosRenataMunicipios2300 | AG1: ServiciosAcadémicosRenataMunicipios2350 | AH1: ServiciosAcadémicosRenataMunicipios2400 | AI1: ServiciosAcadémicosRenataMunicipios2450 | AJ1: ServiciosAcadémicosRenataMunicipios2500 | AK1: ServiciosAcadémicosRenataMunicipios2600 | AL1: ServiciosAcadémicosRenataMunicipios2650 | AM1: ServiciosAcadémicosRenataMunicipios2700 | AN1: ServiciosAcadémicosRenataMunicipios2800 | AO1: ServiciosAcadémicosRenataMunicipios2900 | AP1: ServiciosAcadémicosRenataMunicipios21000 | AQ1: ServiciosAcadémicosRenataMunicipios36 | AR1: ServiciosAcadémicosRenataMunicipios38 | AS1: ServiciosAcadémicosRenataMunicipios310 | AT1: ServiciosAcadémicosRenataMunicipios46 | AU1: ServiciosAcadémicosRenataMunicipios48 | AV1: ServiciosAcadémicosRenataMunicipios410 | AW1: ServiciosAcadémicosRenataMunicipios415 | AX1: ServiciosAcadémicosRenataMunicipios420 | AY1: ServiciosAcadémicosRenataMunicipios430 | AZ1: ServiciosAcadémicosRenataMunicipios435 | BA1: ServiciosAcadémicosRenataMunicipios440 | BB1: ServiciosAcadémicosRenataMunicipios450 | BC1: ServiciosAcadémicosRenataMunicipios56 | BD1: ServiciosAcadémicosRenataMunicipios58 | BE1: ServiciosAcadémicosRenataMunicipios510 | BF1: ServiciosAcadémicosRenataMunicipios515 | BG1: ServiciosAcadémicosRenataMunicipios520 | BH1: ServiciosAcadémicosRenataMunicipios530 | BI1: ServiciosAcadémicosRenataMunicipios535 | BJ1: ServiciosAcadémicosRenataMunicipios540 | BK1: ServiciosAcadémicosRenataMunicipios550 | BL1: ServiciosAcadémicosRenataMunicipios560 | BM1: ServiciosAcadémicosRenataMunicipios570 | BN1: ServiciosAcadémicosRenataMunicipios580 | BO1: ServiciosAcadémicosRenataMunicipios590 | BP1: ColfireMunicipios | BQ1: EduroamMunicipios | BR1: Departamento1 | BS1: Departamento1Quindío | BT1: Departamento1Atlántico | BU1: Departamento1BogotáDC | BV1: Departamento1Santander | BW1: Departamento1ValledelCauca | BX1: Departamento1Bolívar | BY1: Departamento1Cundinamarca | BZ1: Departamento1Caldas | CA1: Departamento1NortedeSantander | CB1: Departamento1Tolima | CC1: Departamento1Nariño | CD1: Departamento1Antioquia | CE1: Departamento1Córdoba | CF1: Departamento1Huila | CG1: Departamento1Risaralda | CH1: Departamento1Cauca | CI1: Departamento1Guajira | CJ1: Departamento1Magdalena | CK1: Departamento1Sucre | CL1: Departamento1Boyacá | CM1: Departamento1Cesar | CN1: Departamento1Meta | CO1: Departamento2 | CP1: Departamento2Antioquia | CQ1: Departamento2Bolívar | CR1: Departamento2Boyacá | CS1: Departamento2Caldas | CT1: Departamento2Cauca | CU1: Departamento2Cesar | CV1: Departamento2Cundinamarca | CW1: Departamento2Huila | CX1: Departamento2Magdalena | CY1: Departamento2Nariño | CZ1: Departamento2NortedeSantander | DA1: Departamento2Risaralda | DB1: Departamento2Santander | DC1: Departamento2Sucre | DD1: Departamento2Tolima | DE1: Departamento2Valledelcauca | DF1: Departamento3 | DG1: Departamento3Antioquia | DH1: Departamento3Atlántico | DI1: Departamento3Bolívar | DJ1: Departamento3Boyacá | DK1: Departamento3Caldas | DL1: Departamento3Cesar | DM1: Departamento3Córdoba | DN1: Departamento3Cundinamarca | DO1: Departamento3Guajira | DP1: Departamento3Huila | DQ1: Departamento3Magdalena | DR1: Departamento3Nariño | DS1: Departamento3NortedeSantander | DT1: Departamento3Quindío | DU1: Departamento3Risaralda | DV1: Departamento3Santander | DW1: Departamento3Sucre | DX1: Departamento3Tolima | DY1: Departamento3ValledelCauca | DZ1: Departamento4 | EA1: Departamento4Atlántico | EB1: Departamento4Boyacá | EC1: Departamento4Caldas | ED1: Departamento4Casanare | EE1: Departamento4Cesar | EF1: Departamento4Choco | EG1: Departamento4Cundinamarca | EH1: Departamento4Huila | EI1: Departamento4Quindío | EJ1: Departamento4Risaralda | EK1: Departamento4Santander | EL1: Departamento4Tolima | EM1: Departamento4ValledelCauca | EN1: Departamento5 | EO1: Departamento5Arauca | EP1: Departamento5Casanare | EQ1: Departamento5Guaviare | ER1: Departamento5Meta | ES1: Departamento5Nariño | ET1: Departamento5Putumayo
A2: Colfire | B2: 1 | C2: 20 | D2: 50 | E2: 6 | F2: 6 | G2: 6 | H2: 0 | I2: 0 | J2: 0 | K2: 0 | L2: 0 | M2: 0 | N2: 0 | O2: 0 | P2: 0 | Q2: 0 | R2: 0 | S2: 0 | T2: 0 | U2: 0 | V2: 0 | W2: 0 | X2: 0 | Y2: 0 | Z2: 0 | AA2: 0 | AB2: 0 | AC2: 0 | AD2: 0 | AE2: 0 | AF2: 0 | AG2: 0 | AH2: 0 | AI2: 0 | AJ2: 0 | AK2: 0 | AL2: 0 | AM2: 0 | AN2: 0 | AO2: 0 | AP2: 0 | AQ2: 4 | AR2: 2 | AS2: 0 | AT2: 4 | AU2: 2 | AV2: 0 | AW2: 5 | AX2: 0 | AY2: 10 | AZ2: 15 | BA2: 0 | BB2: 0 | BC2: 4 | BD2: 2 | BE2: 0 | BF2: 5 | BG2: 0 | BH2: 10 | BI2: 15 | BJ2: 0 | BK2: 0 | BL2: 0 | BM2: 0 | BN2: 0 | BO2: 0 | BP2: 1 | BQ2: 1 | BR2: Quindío | BS2: Armenia | BT2: Barranquilla | BU2: Bogotá D.C | BV2: Bucaramanga | BW2: Buga | BX2: Cartagena | BY2: Chía | BZ2: Chinchiná | CA2: Cúcuta | CB2: Espinal | CC2: Ipiales | CD2: Medellín | CE2: Montería | CF2: Neiva | CG2: Pereira | CH2: Popayán | CI2: Riohacha | CJ2: Santa Marta | CK2: Sincelejo | CL2: Sogamoso | CM2: Valledupar | CN2: Villavicencio | CO2: Antioquia | CP2: Bello | CQ2: Turbaná | CR2: Cómbita | CS2: Neira | CT2: Cajibío | CU2: González | CV2: La Calera | CW2: Palermo | CX2: Ciénaga | CY2: Aldana | CZ2: La Playa | DA2: Dos Quebradas | DB2: Curití | DC2: Corozal | DD2: Anzoátegui | DE2: Candelaria | DF2: Antioquia | DG2: Yarumal | DH2: Galapa | DI2: San Jacinto | DJ2: Moniquirá | DK2: La Dorada | DL2: Agustín Codazzi | DM2: Cerete | DN2: Arbeláez | DO2: Hatonuevo | DP2: Pitalito | DQ2: Ciénaga | DR2: El Charco | DS2: Los Patios | DT2: Calarcá | DU2: Quinchía | DV2: Girón | DW2: San Onofre | DX2: Guamo | DY2: Andalucía | DZ2: Atlántico | EA2: Soledad | EB2: Duitama | EC2: Anserma | ED2: Yopal | EE2: Bosconia | EF2: Quibdó | EG2: Funza | EH2: Garzón | EI2: Montenegro | EJ2: Dos Quebradas | EK2: Piedecuesta | EL2: Chaparral | EM2: Buenaventura | EN2: Arauca | EO2: Arauca | EP2: Aguazul | EQ2: El Retorno | ER2: Granada | ES2: San Andrés De Tumaco | ET2: Mocoa
A3: Eduroam | B3: 2 | C3: 30 | D3: 100 | E3: 8 | F3: 8 | G3: 8 | H3: 5 | I3: 10 | J3: 10 | K3: 10 | L3: 20 | M3: 30 | N3: 40 | O3: 50 | P3: 60 | Q3: 70 | R3: 80 | S3: 90 | T3: 100 | U3: 120 | V3: 130 | W3: 140 | X3: 200 | AA3: 10 | AB3: 20 | AC3: 30 | AD3: 40 | AE3: 50 | AF3: 60 | AG3: 70 | AH3: 80 | AI3: 90 | AJ3: 100 | AK3: 120 | AL3: 130 | AM3: 140 | AN3: 200 | AX3: 10 | AY3: 20 | BA3: 10 | BG3: 10 | BH3: 20 | BJ3: 10 | BK3: 10 | BL3: 20 | BM3: 10 | BN3: 10 | BP3: 2 | BQ3: 2 | BR3: Atlántico | BV3: Ocaña | BW3: Cali | BY3: Fusagasugá | BZ3: Manizales | CA3: Pamplona | CB3: Ibagué | CC3: Pasto | CK3: Tolú | CL3: Tunja | CO3: Bolívar | CP3: Copacabana | CR3: Cucaita | CS3: VillaMaría | CT3: Sotará(Paispamba) | CU3: La Paz(Robles) | CV3: Mosquera | CW3: Rivera | CY3: Chachagüí | CZ3: Pamplonita | DB3: Florida Blanca | DC3: Coveñas | DD3: Cajamarca | DE3: El Cerrito | DF3: Atlántico | DH3: Malambo | DI3: San Pablo | DJ3: Paipa | DK3: Supía | DL3: Astrea | DM3: Planeta Rica | DN3: Cajicá | DO3: Maicao | DP3: Timaná | DQ3: Fundación | DS3: Villa del Rosario | DT3: Circasia | DU3: Santa Rosa de Cabal | DV3: Puerto Wilches | DX3: Honda | DY3: Ansermanuevo | DZ3: Boyacá | EF3: Tadó | EG3: Madrid | EL3: San Sebastián De Mariquita | EN3: Casanare | EO3: Fortul | EP3: Tauramena | EQ3: San José del Guaviare | ER3: Restrepo
A4: Servicios Académicos Renata | B4: 3 | C4: 40 | D4: 150 | E4: 10 | F4: 10 | G4: 10 | H4: 10 | I4: 15 | J4: 20 | K4: 25 | L4: 50 | M4: 75 | N4: 100 | O4: 125 | P4: 150 | Q4: 175 | R4: 200 | S4: 225 | T4: 250 | U4: 300 | V4: 325 | AA4: 25 | AB4: 50 | AC4: 75 | AD4: 100 | AE4: 125 | AF4: 150 | AG4: 175 | AH4: 200 | AI4: 225 | AJ4: 250 | AK4: 300 | AL4: 325 | BJ4: 20 | BK4: 20 | BL4: 30 | BM4: 20 | BP4: 3 | BQ4: 3 | BR4: Bogotá D.C | BV4: San Gil | BW4: Palmira | BY4: Soacha | CB4: Melgar | CO4: Boyacá | CP4: Envigado | CR4: Firavitoba | CV4: Pasca | CY4: Nariño | DC4: Morróa | DD4: Carmen de Apicalá | DE4: Guacarí | DF4: Bolívar | DH4: Puerto Colombia | DI4: Santa Rosa | DJ4: Puerto Boyacá | DL4: Becerril | DN4: Chocontá | DQ4: Pivijay | DT4: La Tebaida | DV4: Socorro | DX4: Natagaima | DY4: Bugalagrande | DZ4: Caldas | EG4: Tocancipá | EN4: Guaviare | EP4: Villanueva
B5: 4 | C5: 50 | D5: 200 | F5: 15 | G5: 15 | BK5: 30 | BP5: 4 | BQ5: 4 | BR5: Santander | CO5: Caldas | CP5: Itagüí | CR5: Motavita | CY5: Potosí | DC5: Sampues | DD5: Icononzo | DE5: San Pedro | DF5: Boyacá | DH5: Santo Tomás | DI5: Turbaco | DJ5: Ventaquemada | DL5: Chiriguaná | DN5: Cogua | DX5: Ortega | DY5: Florida | DZ5: Casanare | EN5: Meta
B6: 5 | C6: 100 | D6: 250 | F6: 20 | G6: 20 | BK6: 40 | BP6: 5 | BQ6: 5 | BR6: Valle del Cauca | CO6: Cauca | CP6: Rionegro | CR6: Nobsa | CY6: Pupiales | DC6: Toluviejo | DD6: Ricaurte | DE6: Yotoco | DF6: Caldas | DJ6: Villa de Leyva | DL6: San Alberto | DN6: Cota | DX6: Prado | DY6: Jamundí | DZ6: Cesar | EN6: Nariño
C7: 150 | D7: 300 | F7: 30 | G7: 30 | BR7: Bolívar | CO7: Cesar | CR7: Oicatá | DD7: Rovira | DE7: Yumbo | DF7: Cesar | DL7: San Martín | DN7: Facatativá | DX7: Purificación | DY7: Pradera | DZ7: Choco | EN7: Putumayo
C8: 200 | D8: 350 | F8: 35 | G8: 35 | BR8: Cundinamarca | CO8: Cundinamarca | CR8: Tibasosa | DD8: Suárez | DF8: Córdoba | DN8: Girardot | DX8: Saldaña | DY8: Roldanillo | DZ8: Cundinamarca
C9: 250 | D9: 400 | F9: 40 | G9: 40 | BR9: Caldas | CO9: Huila | DF9: Cundinamarca | DN9: Nilo | DY9: Zarzal | DZ9: Huila
C10: 300 | D10: 450 | F10: 50 | G10: 50 | BR10: Norte de Santander | CO10: Magdalena | DF10: Guajira | DN10: Puerto Salgar | DZ10: Quindío
C11: 350 | D11: 500 | G11: 60 | BR11: Tolima | CO11: Nariño | DF11: Huila | DN11: Sibaté | DZ11: Risaralda
C12: 400 | D12: 600 | G12: 70 | BR12: Nariño | CO12: Norte de Santander | DF12: Magdalena | DN12: Silvania | DZ12: Santander
C13: 450 | D13: 650 | G13: 80 | BR13: Antioquia | CO13: Risaralda | DF13: Nariño | DN13: Tabio | DZ13: Tolima
C14: 500 | D14: 700 | G14: 90 | BR14: Córdoba | CO14: Santander | DF14: Norte de Santander | DN14: Tenjo | DZ14: Valle del Cauca
C15: 600 | D15: 800 | BR15: Huila | CO15: Sucre | DF15: Quindío | DN15: Villeta
C16: 650 | D16: 900 | BR16: Risaralda | CO16: Tolima | DF16: Risaralda | DN16: Zipaquirá
C17: 700 | D17: 1000 | BR17: Cauca | CO17: Valle del cauca | DF17: Santander
C18: 800 | BR18: Guajira | DF18: Sucre
C19: 900 | BR19: Magdalena | DF19: Tolima
C20: 1000 | BR20: Sucre | DF20: Valle del Cauca
A21: CORPORACIÓN RED NACIONAL ACADÉMICA DE TECNOLOGÍA AVANZADA RENATA | BR21: Boyacá
BR22: Cesar
BR23: Meta

Sheet solCotizacionCSVPorduc (hidden)
A1: Solicitud | B1: Registrar identificador | C1: Â¿Enviar para aprobaciÃ³n? | D1: LÃ­mite de recepciÃ³n de la sol. | E1: JustificaciÃ³n | F1: Nombre del departamento | G1: Nota del comprador | H1: Solicitado por (correo electrÃ³nico) | I1: Solicitado por (inicio de sesiÃ³n) | J1: Nombre de tarjeta de compras | K1: Enviar a nombre | L1: Enviar a id. | M1: Enviar a nombre de | N1: Enviar a calle 1 | O1: Enviar a calle 2 | P1: Enviar a ciudad | Q1: Enviar a estado | R1: Enviar a cÃ³digo postal | S1: Enviar a cÃ³digo de paÃ­s | T1: Enviar a nombre de paÃ­s | U1: Enviar a cÃ³digo de ubicaciÃ³n | V1: N.I.T. | W1: AgregaciÃ³n | X1: Necesidad del bien o servicio* | Y1: Modalidad de selecciÃ³n | Z1: DestinaciÃ³n del gasto* | AA1: Origen de los recursos* | AB1: Asociado al Acuerdo de Paz* | AC1: Supervisor de la Orden de Compra* | AD1: Correo electrÃ³nico del supervisor* | AE1: TelÃ©fono del supervisor* | AF1: Vencimiento de la Orden de Compra* | AG1: Especificaciones adicionales de entrega | AH1: GravÃ¡menes adicionales | AI1: IntegraciÃ³n con SIIF | AJ1: CÃ³digo Unidad / Subunidad Ejecutora | AK1: Acepto tÃ©rminos y condiciones
A2: LÃ­nea de solicitudes | B2: Registrar identificador | C2: NÃºmero de lÃ­nea | D2: NÃºmero de artÃ­culo del catÃ¡logo | E2: Nombre de artÃ­culo del catÃ¡logo | F2: Sin descripciÃ³n de artÃ­culo del catÃ¡logo | G2: NÃºmero de parte del proveedor | H2: Cantidad | I2: Precio | J2: LÃ­mite de recepciÃ³n de la sol. | K2: Nombre del proveedor | L2: NÃºmero del proveedor | M2: CÃ³digo de sitio del proveedor | N2: CÃ³digo de unidad de medida | O2: Nombre de mercancÃ­a | P2: Nombre del contrato | Q2: CÃ³digo de divisa | R2: Etiquetas de activos | S2: Nombre del Cuadro de cuentas | T2: Nombre de la cuenta | U2: CÃ³digo de cuentas | V2: Segmento 1 de la cuenta | W2: Segmento 2 de la cuenta | X2: Segmento 3 de la cuenta | Y2: Segmento 4 de la cuenta | Z2: Segmento 5 de la cuenta | AA2: Segmento 6 de la cuenta | AB2: Segmento 7 de la cuenta | AC2: Segmento 8 de la cuenta | AD2: Segmento 9 de la cuenta | AE2: Segmento 10 de la cuenta | AF2: Segmento 11 de la cuenta | AG2: Segmento 12 de la cuenta | AH2: Segmento 13 de la cuenta | AI2: Segmento 14 de la cuenta | AJ2: Segmento 15 de la cuenta | AK2: Segmento 16 de la cuenta
A3: AsignaciÃ³n de cuentas | B3: Registrar identificador | C3: NÃºmero de lÃ­nea | D3: Monto | E3: Porcentaje | F3: Nombre de perÃ­odo de presupuesto | G3: Nombre de la cuenta | H3: CÃ³digo de cuentas | I3: Segmento 1 de la cuenta | J3: Segmento 2 de la cuenta | K3: Segmento 3 de la cuenta | L3: Segmento 4 de la cuenta | M3: Segmento 5 de la cuenta | N3: Segmento 6 de la cuenta | O3: Segmento 7 de la cuenta | P3: Segmento 8 de la cuenta | Q3: Segmento 9 de la cuenta | R3: Segmento 10 de la cuenta | S3: Segmento 11 de la cuenta | T3: Segmento 12 de la cuenta | U3: Segmento 13 de la cuenta | V3: Segmento 14 de la cuenta | W3: Segmento 15 de la cuenta | X3: Segmento 16 de la cuenta | Y3: Segmento 17 de la cuenta | Z3: Segmento 18 de la cuenta | AA3: Segmento 19 de la cuenta | AB3: Segmento 20 de la cuenta
A4: Solicitud | B4: 1 | C4: no | F4: Digite nombre de la entidad | H4: crear.entidad@colombiacompra.gov.co | I4: digite.usuario | K4: Direccion | L4: 4394 | W4: Servicios RENATA | X4: Necesidad | Y4: SelecciÃ³n Abreviada AMP | Z4: Funcionamiento | AA4: Recursos propios | AB4: No | AC4: Digite supervisor | AD4: Digite correo | AE4: 1 | AF4: 2020-01-01 | AH4: GravÃ¡menes | AJ4: Yes
A5: LÃ­nea de solicitudes | B5: 1 | C5: 1

Sheet Consolidado (hidden)
A1: Llave1 | B1: Código del servicio | C1: Categoría | D1: Nombre del servicio | E1: Municipios | F1: Característica 1 BW Red Académica | G1: Característica 2 BW internet | H1: Unidad de facturación | I1: 3 | J1: 4 | K1: 5 | L1: 6 | M1: 7 | N1: 8 | O1: 9 | P1: 10 | Q1: 11 | R1: 12 | S1: 13 | T1: 14 | U1: 15 | V1: 16 | W1: 17 | X1: 18 | Y1: 19 | Z1: 20 | AA1: 21 | AB1: 22 | AC1: 23 | AD1: 24 | AE1: Valor metro instalación desde nodo de red
A2: =D2&E2&F2&G2 -> Servicios Académicos Renata1200 | B2: IT-RNT-RA-1.43 | C2: 1 | D2: Servicios Académicos Renata | E2: 1 | F2: 20 | G2: 0 | H2: Mes | I2: 4452000 | J2: 3370000 | K2: 2721000 | L2: 2288000 | M2: 1979000 | N2: 1747000 | O2: 1567000 | P2: 1423000 | Q2: 1305000 | R2: 1206000 | S2: 1123000 | T2: 1052000 | U2: 990000 | V2: 936000 | W2: 888000 | X2: 846000 | Y2: 808000 | Z2: 774000 | AA2: 743000 | AB2: 715000 | AC2: 689000 | AD2: 666000 | AE2: 3261.7202
A3: Servicios Académicos Renata1205 | B3: IT-RNT-RA-1.44 | C3: 1 | D3: Servicios Académicos Renata | E3: 1 | F3: 20 | G3: 5 | H3: Mes | I3: 5710000 | J3: 4330000 | K3: 3502000 | L3: 2950000 | M3: 2556000 | N3: 2260000 | O3: 2030000 | P3: 1846000 | Q3: 1696000 | R3: 1570000 | S3: 1464000 | T3: 1373000 | U3: 1294000 | V3: 1225000 | W3: 1164000 | X3: 1110000 | Y3: 1062000 | Z3: 1018000 | AA3: 979000 | AB3: 943000 | AC3: 910000 | AD3: 881000 | AE3: 3261.7202
A4: Servicios Académicos Renata12010 | B4: IT-RNT-RA-1.45 | C4: 1 | D4: Servicios Académicos Renata | E4: 1 | F4: 20 | G4: 10 | H4: Mes | I4: 5816000 | J4: 4426000 | K4: 3592000 | L4: 3036000 | M4: 2639000 | N4: 2341000 | O4: 2109000 | P4: 1924000 | Q4: 1773000 | R4: 1646000 | S4: 1539000 | T4: 1448000 | U4: 1368000 | V4: 1299000 | W4: 1237000 | X4: 1183000 | Y4: 1134000 | Z4: 1090000 | AA4: 1051000 | AB4: 1015000 | AC4: 981000 | AD4: 952000 | AE4: 3261.7202
A5: Servicios Académicos Renata1300 | B5: IT-RNT-RA-1.46 | C5: 1 | D5: Servicios Académicos Renata | E5: 1 | F5: 30 | G5: 0 | H5: Mes | I5: 4843000 | J5: 3679000 | K5: 2981000 | L5: 2515000 | M5: 2183000 | N5: 1933000 | O5: 1739000 | P5: 1584000 | Q5: 1457000 | R5: 1351000 | S5: 1262000 | T5: 1185000 | U5: 1119000 | V5: 1060000 | W5: 1009000 | X5: 963000 | Y5: 922000 | Z5: 886000 | AA5: 852000 | AB5: 822000 | AC5: 795000 | AD5: 769000 | AE5: 3261.7202
A6: Servicios Académicos Renata13010 | B6: IT-RNT-RA-1.47 | C6: 1 | D6: Servicios Académicos Renata | E6: 1 | F6: 30 | G6: 10 | H6: Mes | I6: 6207000 | J6: 4735000 | K6: 3852000 | L6: 3263000 | M6: 2843000 | N6: 2527000 | O6: 2281000 | P6: 2085000 | Q6: 1925000 | R6: 1791000 | S6: 1678000 | T6: 1581000 | U6: 1497000 | V6: 1423000 | W6: 1358000 | X6: 1300000 | Y6: 1248000 | Z6: 1202000 | AA6: 1160000 | AB6: 1122000 | AC6: 1087000 | AD6: 1055000 | AE6: 3261.7202
A7: Servicios Académicos Renata13015 | B7: IT-RNT-RA-1.48 | C7: 1 | D7: Servicios Académicos Renata | E7: 1 | F7: 30 | G7: 15 | H7: Mes | I7: 3849500 | J7: 3000500 | K7: 2490300 | L7: 2150500 | M7: 1907400 | N7: 1725500 | O7: 1583500 | P7: 1470900 | Q7: 1378200 | R7: 1300500 | S7: 1828000 | T7: 1729000 | U7: 1645000 | V7: 1569000 | W7: 1504000 | X7: 1445000 | Y7: 1393000 | Z7: 1346000 | AA7: 1303000 | AB7: 1264000 | AC7: 1230000 | AD7: 1196000 | AE7: 3261.7202
A8: Servicios Académicos Renata1400 | B8: IT-RNT-RA-1.49 | C8: 1 | D8: Servicios Académicos Renata | E8: 1 | F8: 40 | G8: 0 | H8: Mes | I8: 3034000 | J8: 2338000 | K8: 1920400 | L8: 1642000 | M8: 1443200 | N8: 1294000 | O8: 1178000 | P8: 1085200 | Q8: 1009600 | R8: 946000 | S8: 892800 | T8: 846800 | U8: 806800 | V8: 772000 | W8: 741600 | X8: 714000 | Y8: 689600 | Z8: 667600 | AA8: 648000 | AB8: 630000 | AC8: 613200 | AD8: 598000 | AE8: 3261.7202
A9: Servicios Académicos Renata14010 | B9: IT-RNT-RA-1.50 | C9: 1 | D9: Servicios Académicos Renata | E9: 1 | F9: 40 | G9: 10 | H9: Mes | I9: 4398000 | J9: 3394000 | K9: 2791400 | L9: 2390000 | M9: 2103200 | N9: 1888000 | O9: 1720000 | P9: 1586200 | Q9: 1477600 | R9: 1386000 | S9: 1308800 | T9: 1242800 | U9: 1184800 | V9: 1135000 | W9: 1090600 | X9: 1051000 | Y9: 1015600 | Z9: 983600 | AA9: 956000 | AB9: 930000 | AC9: 905200 | AD9: 884000 | AE9: 3261.7202
A10: Servicios Académicos Renata14020 | B10: IT-RNT-RA-1.51 | C10: 1 | D10: Servicios Académicos Renata | E10: 1 | F10: 40 | G10: 20 | H10: Mes | I10: 4608000 | J10: 3585000 | K10: 2970400 | L10: 2561000 | M10: 2268200 | N10: 2049000 | O10: 1878000 | P10: 1742200 | Q10: 1630600 | R10: 1537000 | S10: 1458800 | T10: 1390800 | U10: 1332800 | V10: 1281000 | W10: 1236600 | X10: 1196000 | Y10: 1160600 | Z10: 1127600 | AA10: 1099000 | AB10: 1072000 | AC10: 1048200 | AD10: 1025000 | AE10: 3261.7202
A11: =D11&E11&F11&G11 -> Servicios Académicos Renata1500 | B11: IT-RNT-RA-1.1 | C11: 1 | D11: Servicios Académicos Renata | E11: 1 | F11: 50 | G11: 0 | H11: Mes | I11: 3792500 | J11: 2922500 | K11: 2400500 | L11: 2052500 | M11: 1804000 | N11: 1617500 | O11: 1472500 | P11: 1356500 | Q11: 1262000 | R11: 1182500 | S11: 1116000 | T11: 1058500 | U11: 1008500 | V11: 965000 | W11: 927000 | X11: 892500 | Y11: 862000 | Z11: 834500 | AA11: 810000 | AB11: 787500 | AC11: 766500 | AD11: 747500 | AE11: 3261.7202
A12: =D12&E12&F12&G12 -> Servicios Académicos Renata15010 | B12: IT-RNT-RA-1.2 | C12: 1 | D12: Servicios Académicos Renata | E12: 1 | F12: 50 | G12: 10 | H12: Mes | I12: 5156500 | J12: 3978500 | K12: 3271500 | L12: 2800500 | M12: 2464000 | N12: 2211500 | O12: 2014500 | P12: 1857500 | Q12: 1730000 | R12: 1622500 | S12: 1532000 | T12: 1454500 | U12: 1386500 | V12: 1328000 | W12: 1276000 | X12: 1229500 | Y12: 1188000 | Z12: 1150500 | AA12: 1118000 | AB12: 1087500 | AC12: 1058500 | AD12: 1033500 | AE12: 3261.7202
A13: Servicios Académicos Renata15025 | B13: IT-RNT-RA-1.3 | C13: 1 | D13: Servicios Académicos Renata | E13: 1 | F13: 50 | G13: 25 | H13: Mes | I13: 5472500 | J13: 4264500 | K13: 3540500 | L13: 3057500 | M13: 2712000 | N13: 2453500 | O13: 2252500 | P13: 2091500 | Q13: 1960000 | R13: 1849500 | S13: 1757000 | T13: 1677500 | U13: 1608500 | V13: 1548000 | W13: 1495000 | X13: 1447500 | Y13: 1405000 | Z13: 1366500 | AA13: 1332000 | AB13: 1301500 | AC13: 1272500 | AD13: 1245500 | AE13: 3261.7202
A14: Servicios Académicos Renata11000 | B14: IT-RNT-RA-1.4 | C14: 1 | D14: Servicios Académicos Renata | E14: 1 | F14: 100 | G14: 0 | H14: Mes | I14: 7585000 | J14: 5845000 | K14: 4801000 | L14: 4105000 | M14: 3608000 | N14: 3235000 | O14: 2945000 | P14: 2713000 | Q14: 2524000 | R14: 2365000 | S14: 2232000 | T14: 2117000 | U14: 2017000 | V14: 1930000 | W14: 1854000 | X14: 1785000 | Y14: 1724000 | Z14: 1669000 | AA14: 1620000 | AB14: 1575000 | AC14: 1533000 | AD14: 1495000 | AE14: 3261.7202
A15: Servicios Académicos Renata110020 | B15: IT-RNT-RA-1.5 | C15: 1 | D15: Servicios Académicos Renata | E15: 1 | F15: 100 | G15: 20 | H15: Mes | I15: 9159000 | J15: 7092000 | K15: 5851000 | L15: 5024000 | M15: 4433000 | N15: 3990000 | O15: 3645000 | P15: 3370000 | Q15: 3145000 | R15: 2956000 | S15: 2798000 | T15: 2661000 | U15: 2543000 | V15: 2439000 | W15: 2349000 | X15: 2267000 | Y15: 2195000 | Z15: 2129000 | AA15: 2071000 | AB15: 2017000 | AC15: 1968000 | AD15: 1922000 | AE15: 3261.7202
A16: Servicios Académicos Renata110050 | B16: IT-RNT-RA-1.6 | C16: 1 | D16: Servicios Académicos Renata | E16: 1 | F16: 100 | G16: 50 | H16: Mes | I16: 9791000 | J16: 7665000 | K16: 6389000 | L16: 5538000 | M16: 4931000 | N16: 4475000 | O16: 4120000 | P16: 3837000 | Q16: 3606000 | R16: 3411000 | S16: 3249000 | T16: 3108000 | U16: 2986000 | V16: 2880000 | W16: 2787000 | X16: 2703000 | Y16: 2628000 | Z16: 2561000 | AA16: 2501000 | AB16: 2446000 | AC16: 2394000 | AD16: 2348000 | AE16: 3261.7202
A17: Servicios Académicos Renata11500 | B17: IT-RNT-RA-1.7 | C17: 1 | D17: Servicios Académicos Renata | E17: 1 | F17: 150 | G17: 0 | H17: Mes | I17: 9543000 | J17: 7392000 | K17: 6101000 | L17: 5241000 | M17: 4626000 | N17: 4165000 | O17: 3807000 | P17: 3520000 | Q17: 3285000 | R17: 3090000 | S17: 2924000 | T17: 2782000 | U17: 2659000 | V17: 2552000 | W17: 2457000 | X17: 2373000 | Y17: 2297000 | Z17: 2229000 | AA17: 2168000 | AB17: 2112000 | AC17: 2061000 | AD17: 2014000 | AE17: 3261.7202
A18: Servicios Académicos Renata115030 | B18: IT-RNT-RA-1.8 | C18: 1 | D18: Servicios Académicos Renata | E18: 1 | F18: 150 | G18: 30 | H18: Mes | I18: 11328000 | J18: 8830000 | K18: 7330000 | L18: 6331000 | M18: 5617000 | N18: 5082000 | O18: 4666000 | P18: 4332000 | Q18: 4060000 | R18: 3833000 | S18: 3640000 | T18: 3475000 | U18: 3333000 | V18: 3208000 | W18: 3098000 | X18: 3000000 | Y18: 2912000 | Z18: 2833000 | AA18: 2762000 | AB18: 2697000 | AC18: 2638000 | AD18: 2583000 | AE18: 3261.7202
A19: Servicios Académicos Renata115075 | B19: IT-RNT-RA-1.9 | C19: 1 | D19: Servicios Académicos Renata | E19: 1 | F19: 150 | G19: 75 | H19: Mes | I19: 12276000 | J19: 9689000 | K19: 8137000 | L19: 7103000 | M19: 6363000 | N19: 5809000 | O19: 5378000 | P19: 5033000 | Q19: 4750000 | R19: 4516000 | S19: 4316000 | T19: 4145000 | U19: 3998000 | V19: 3869000 | W19: 3755000 | X19: 3653000 | Y19: 3562000 | Z19: 3480000 | AA19: 3407000 | AB19: 3340000 | AC19: 3278000 | AD19: 3222000 | AE19: 3261.7202
A20: Servicios Académicos Renata12000 | B20: IT-RNT-RA-1.10 | C20: 1 | D20: Servicios Académicos Renata | E20: 1 | F20: 200 | G20: 0 | H20: Mes | I20: 11502000 | J20: 8939000 | K20: 7402000 | L20: 6377000 | M20: 5644000 | N20: 5095000 | O20: 4668000 | P20: 4326000 | Q20: 4047000 | R20: 3814000 | S20: 3617000 | T20: 3448000 | U20: 3301000 | V20: 3173000 | W20: 3060000 | X20: 2960000 | Y20: 2870000 | Z20: 2789000 | AA20: 2716000 | AB20: 2649000 | AC20: 2588000 | AD20: 2533000 | AE20: 3261.7202
A21: Servicios Académicos Renata120040 | B21: IT-RNT-RA-1.11 | C21: 1 | D21: Servicios Académicos Renata | E21: 1 | F21: 200 | G21: 40 | H21: Mes | I21: 13498000 | J21: 10568000 | K21: 8811000 | L21: 7639000 | M21: 6801000 | N21: 6173000 | O21: 5685000 | P21: 5294000 | Q21: 4975000 | R21: 4709000 | S21: 4483000 | T21: 4290000 | U21: 4122000 | V21: 3976000 | W21: 3847000 | X21: 3732000 | Y21: 3629000 | Z21: 3537000 | AA21: 3453000 | AB21: 3377000 | AC21: 3307000 | AD21: 3244000 | AE21: 3261.7202
A22: Servicios Académicos Renata1200100 | B22: IT-RNT-RA-1.12 | C22: 1 | D22: Servicios Académicos Renata | E22: 1 | F22: 200 | G22: 100 | H22: Mes | I22: 14762000 | J22: 11714000 | K22: 9886000 | L22: 8667000 | M22: 7795000 | N22: 7143000 | O22: 6635000 | P22: 6228000 | Q22: 5896000 | R22: 5619000 | S22: 5385000 | T22: 5184000 | U22: 5009000 | V22: 4857000 | W22: 4722000 | X22: 4603000 | Y22: 4496000 | Z22: 4400000 | AA22: 4313000 | AB22: 4234000 | AC22: 4161000 | AD22: 4096000 | AE22: 3261.7202
A23: Servicios Académicos Renata12500 | B23: IT-RNT-RA-1.13 | C23: 1 | D23: Servicios Académicos Renata | E23: 1 | F23: 250 | G23: 0 | H23: Mes | I23: 13460000 | J23: 10486000 | K23: 8702000 | L23: 7512000 | M23: 6662000 | N23: 6025000 | O23: 5530000 | P23: 5133000 | Q23: 4809000 | R23: 4538000 | S23: 4310000 | T23: 4113000 | U23: 3944000 | V23: 3795000 | W23: 3664000 | X23: 3547000 | Y23: 3443000 | Z23: 3349000 | AA23: 3264000 | AB23: 3187000 | AC23: 3116000 | AD23: 3051000 | AE23: 3261.7202
A24: Servicios Académicos Renata125050 | B24: IT-RNT-RA-1.14 | C24: 1 | D24: Servicios Académicos Renata | E24: 1 | F24: 250 | G24: 50 | H24: Mes | I24: 15666000 | J24: 12306000 | K24: 10290000 | L24: 8945000 | M24: 7985000 | N24: 7265000 | O24: 6705000 | P24: 6257000 | Q24: 5891000 | R24: 5584000 | S24: 5327000 | T24: 5104000 | U24: 4913000 | V24: 4745000 | W24: 4597000 | X24: 4465000 | Y24: 4347000 | Z24: 4241000 | AA24: 4145000 | AB24: 4058000 | AC24: 3977000 | AD24: 3904000 | AE24: 3261.7202
A25: Servicios Académicos Renata1250125 | B25: IT-RNT-RA-1.15 | C25: 1 | D25: Servicios Académicos Renata | E25: 1 | F25: 250 | G25: 125 | H25: Mes | I25: 17247000 | J25: 13739000 | K25: 11634000 | L25: 10231000 | M25: 9228000 | N25: 8476000 | O25: 7892000 | P25: 7424000 | Q25: 7042000 | R25: 6722000 | S25: 6453000 | T25: 6221000 | U25: 6021000 | V25: 5846000 | W25: 5691000 | X25: 5553000 | Y25: 5431000 | Z25: 5320000 | AA25: 5219000 | AB25: 5129000 | AC25: 5045000 | AD25: 4968000 | AE25: 3261.7202
A26: Servicios Académicos Renata13000 | B26: IT-RNT-RA-1.16 | C26: 1 | D26: Servicios Académicos Renata | E26: 1 | F26: 300 | G26: 0 | H26: Mes | I26: 15418000 | J26: 12033000 | K26: 10002000 | L26: 8648000 | M26: 7681000 | N26: 6955000 | O26: 6391000 | P26: 5940000 | Q26: 5570000 | R26: 5263000 | S26: 5002000 | T26: 4779000 | U26: 4586000 | V26: 4416000 | W26: 4267000 | X26: 4134000 | Y26: 4015000 | Z26: 3909000 | AA26: 3812000 | AB26: 3724000 | AC26: 3644000 | AD26: 3570000 | AE26: 3261.7202
A27: Servicios Académicos Renata130060 | B27: IT-RNT-RA-1.17 | C27: 1 | D27: Servicios Académicos Renata | E27: 1 | F27: 300 | G27: 60 | H27: Mes | I27: 17835000 | J27: 14044000 | K27: 11769000 | L27: 10252000 | M27: 9169000 | N27: 8356000 | O27: 7725000 | P27: 7219000 | Q27: 6805000 | R27: 6461000 | S27: 6169000 | T27: 5919000 | U27: 5703000 | V27: 5513000 | W27: 5346000 | X27: 5197000 | Y27: 5063000 | Z27: 4945000 | AA27: 4836000 | AB27: 4737000 | AC27: 4648000 | AD27: 4565000 | AE27: 3261.7202
A28: Servicios Académicos Renata1300150 | B28: IT-RNT-RA-1.18 | C28: 1 | D28: Servicios Académicos Renata | E28: 1 | F28: 300 | G28: 150 | H28: Mes | I28: 19732000 | J28: 15763000 | K28: 13382000 | L28: 11795000 | M28: 10661000 | N28: 9810000 | O28: 9149000 | P28: 8620000 | Q28: 8187000 | R28: 7827000 | S28: 7521000 | T28: 7259000 | U28: 7033000 | V28: 6834000 | W28: 6659000 | X28: 6503000 | Y28: 6364000 | Z28: 6239000 | AA28: 6126000 | AB28: 6022000 | AC28: 5929000 | AD28: 5842000 | AE28: 3261.7202
A29: Servicios Académicos Renata13500 | B29: IT-RNT-RA-1.19 | C29: 1 | D29: Servicios Académicos Renata | E29: 1 | F29: 350 | G29: 0 | H29: Mes | I29: 17376000 | J29: 13580000 | K29: 11302000 | L29: 9783000 | M29: 8699000 | N29: 7885000 | O29: 7252000 | P29: 6746000 | Q29: 6332000 | R29: 5987000 | S29: 5695000 | T29: 5445000 | U29: 5228000 | V29: 5038000 | W29: 4870000 | X29: 4721000 | Y29: 4588000 | Z29: 4468000 | AA29: 4360000 | AB29: 4261000 | AC29: 4171000 | AD29: 4089000 | AE29: 3261.7202
A30: Servicios Académicos Renata135070 | B30: IT-RNT-RA-1.20 | C30: 1 | D30: Servicios Académicos Renata | E30: 1 | F30: 350 | G30: 70 | H30: Mes | I30: 20004000 | J30: 15782000 | K30: 13248000 | L30: 11559000 | M30: 10353000 | N30: 9448000 | O30: 8744000 | P30: 8181000 | Q30: 7721000 | R30: 7337000 | S30: 7012000 | T30: 6734000 | U30: 6493000 | V30: 6281000 | W30: 6095000 | X30: 5929000 | Y30: 5781000 | Z30: 5647000 | AA30: 5527000 | AB30: 5417000 | AC30: 5317000 | AD30: 5226000 | AE30: 3261.7202
A31: Servicios Académicos Renata1350175 | B31: IT-RNT-RA-1.21 | C31: 1 | D31: Servicios Académicos Renata | E31: 1 | F31: 350 | G31: 175 | H31: Mes | I31: 22216000 | J31: 17788000 | K31: 15130000 | L31: 13358000 | M31: 12094000 | N31: 11144000 | O31: 10406000 | P31: 9815000 | Q31: 9332000 | R31: 8930000 | S31: 8589000 | T31: 8298000 | U31: 8044000 | V31: 7823000 | W31: 7627000 | X31: 7453000 | Y31: 7298000 | Z31: 7158000 | AA31: 7032000 | AB31: 6916000 | AC31: 6811000 | AD31: 6716000 | AE31: 3261.7202
A32: Servicios Académicos Renata14000 | B32: IT-RNT-RA-1.22 | C32: 1 | D32: Servicios Académicos Renata | E32: 1 | F32: 400 | G32: 0 | H32: Mes | I32: 19335000 | J32: 15127000 | K32: 12602000 | L32: 10919000 | M32: 9717000 | N32: 8815000 | O32: 8114000 | P32: 7553000 | Q32: 7094000 | R32: 6711000 | S32: 6388000 | T32: 6110000 | U32: 5870000 | V32: 5659000 | W32: 5474000 | X32: 5309000 | Y32: 5161000 | Z32: 5028000 | AA32: 4908000 | AB32: 4799000 | AC32: 4699000 | AD32: 4607000 | AE32: 3261.7202
A33: Servicios Académicos Renata140080 | B33: IT-RNT-RA-1.23 | C33: 1 | D33: Servicios Académicos Renata | E33: 1 | F33: 400 | G33: 80 | H33: Mes | I33: 22174000 | J33: 17520000 | K33: 14728000 | L33: 12866000 | M33: 11537000 | N33: 10539000 | O33: 9764000 | P33: 9144000 | Q33: 8636000 | R33: 8213000 | S33: 7855000 | T33: 7548000 | U33: 7282000 | V33: 7049000 | W33: 6845000 | X33: 6662000 | Y33: 6498000 | Z33: 6351000 | AA33: 6219000 | AB33: 6098000 | AC33: 5987000 | AD33: 5886000 | AE33: 3261.7202
A34: Servicios Académicos Renata1400200 | B34: IT-RNT-RA-1.24 | C34: 1 | D34: Servicios Académicos Renata | E34: 1 | F34: 400 | G34: 200 | H34: Mes | I34: 24702000 | J34: 19813000 | K34: 16879000 | L34: 14923000 | M34: 13526000 | N34: 12478000 | O34: 11663000 | P34: 11012000 | Q34: 10478000 | R34: 10033000 | S34: 9658000 | T34: 9335000 | U34: 9056000 | V34: 8811000 | W34: 8596000 | X34: 8404000 | Y34: 8232000 | Z34: 8078000 | AA34: 7938000 | AB34: 7811000 | AC34: 7695000 | AD34: 7588000 | AE34: 3261.7202
A35: Servicios Académicos Renata14500 | B35: IT-RNT-RA-1.25 | C35: 1 | D35: Servicios Académicos Renata | E35: 1 | F35: 450 | G35: 0 | H35: Mes | I35: 21293000 | J35: 16674000 | K35: 13902000 | L35: 12055000 | M35: 10735000 | N35: 9745000 | O35: 8975000 | P35: 8359000 | Q35: 7856000 | R35: 7436000 | S35: 7080000 | T35: 6776000 | U35: 6512000 | V35: 6281000 | W35: 6077000 | X35: 5896000 | Y35: 5734000 | Z35: 5588000 | AA35: 5456000 | AB35: 5336000 | AC35: 5226000 | AD35: 5126000 | AE35: 3261.7202
A36: Servicios Académicos Renata145090 | B36: IT-RNT-RA-1.26 | C36: 1 | D36: Servicios Académicos Renata | E36: 1 | F36: 450 | G36: 90 | H36: Mes | I36: 24342000 | J36: 19258000 | K36: 16207000 | L36: 14174000 | M36: 12721000 | N36: 11631000 | O36: 10783000 | P36: 10105000 | Q36: 9552000 | R36: 9089000 | S36: 8698000 | T36: 8363000 | U36: 8072000 | V36: 7818000 | W36: 7593000 | X36: 7394000 | Y36: 7216000 | Z36: 7055000 | AA36: 6910000 | AB36: 6778000 | AC36: 6657000 | AD36: 6547000 | AE36: 3261.7202
A37: Servicios Académicos Renata1450225 | B37: IT-RNT-RA-1.27 | C37: 1 | D37: Servicios Académicos Renata | E37: 1 | F37: 450 | G37: 225 | H37: Mes | I37: 27187000 | J37: 21837000 | K37: 18627000 | L37: 16487000 | M37: 14959000 | N37: 13812000 | O37: 12920000 | P37: 12207000 | Q37: 11624000 | R37: 11138000 | S37: 10725000 | T37: 10373000 | U37: 10067000 | V37: 9800000 | W37: 9564000 | X37: 9354000 | Y37: 9166000 | Z37: 8997000 | AA37: 8844000 | AB37: 8705000 | AC37: 8578000 | AD37: 8462000 | AE37: 3261.7202
A38: Servicios Académicos Renata15000 | B38: IT-RNT-RA-1.28 | C38: 1 | D38: Servicios Académicos Renata | E38: 1 | F38: 500 | G38: 0 | H38: Mes | I38: 23251000 | J38: 18221000 | K38: 15203000 | L38: 13190000 | M38: 11753000 | N38: 10675000 | O38: 9837000 | P38: 9166000 | Q38: 8617000 | R38: 8160000 | S38: 7773000 | T38: 7441000 | U38: 7154000 | V38: 6902000 | W38: 6680000 | X38: 6483000 | Y38: 6307000 | Z38: 6148000 | AA38: 6004000 | AB38: 5873000 | AC38: 5754000 | AD38: 5645000 | AE38: 3261.7202
A39: Servicios Académicos Renata1500100 | B39: IT-RNT-RA-1.29 | C39: 1 | D39: Servicios Académicos Renata | E39: 1 | F39: 500 | G39: 100 | H39: Mes | I39: 26511000 | J39: 20996000 | K39: 17687000 | L39: 15480000 | M39: 13904000 | N39: 12723000 | O39: 11804000 | P39: 11068000 | Q39: 10466000 | R39: 9965000 | S39: 9541000 | T39: 9177000 | U39: 8862000 | V39: 8586000 | W39: 8342000 | X39: 8126000 | Y39: 7933000 | Z39: 7759000 | AA39: 7601000 | AB39: 7458000 | AC39: 7327000 | AD39: 7208000 | AE39: 3261.7202
A40: Servicios Académicos Renata1500250 | B40: IT-RNT-RA-1.30 | C40: 1 | D40: Servicios Académicos Renata | E40: 1 | F40: 500 | G40: 250 | H40: Mes | I40: 29672000 | J40: 23862000 | K40: 20376000 | L40: 18051000 | M40: 16391000 | N40: 15146000 | O40: 14178000 | P40: 13403000 | Q40: 12769000 | R40: 12241000 | S40: 11794000 | T40: 11410000 | U40: 11079000 | V40: 10788000 | W40: 10531000 | X40: 10304000 | Y40: 10100000 | Z40: 9917000 | AA40: 9751000 | AB40: 9599000 | AC40: 9462000 | AD40: 9336000 | AE40: 3261.7202
A41: Servicios Académicos Renata16000 | B41: IT-RNT-RA-1.31 | C41: 1 | D41: Servicios Académicos Renata | E41: 1 | F41: 600 | G41: 0 | H41: Mes | I41: 28593000 | J41: 22740000 | K41: 19228000 | L41: 16887000 | M41: 15214000 | N41: 13960000 | O41: 12985000 | P41: 12204000 | Q41: 11566000 | R41: 11034000 | S41: 10583000 | T41: 10197000 | U41: 9863000 | V41: 9570000 | W41: 9312000 | X41: 9083000 | Y41: 8877000 | Z41: 8692000 | AA41: 8525000 | AB41: 8373000 | AC41: 8234000 | AD41: 8107000 | AE41: 3261.7202
A42: Servicios Académicos Renata1600120 | B42: IT-RNT-RA-1.32 | C42: 1 | D42: Servicios Académicos Renata | E42: 1 | F42: 600 | G42: 120 | H42: Mes | I42: 32275000 | J42: 25897000 | K42: 22071000 | L42: 19520000 | M42: 17697000 | N42: 16331000 | O42: 15268000 | P42: 14417000 | Q42: 13722000 | R42: 13142000 | S42: 12651000 | T42: 12231000 | U42: 11867000 | V42: 11547000 | W42: 11266000 | X42: 11017000 | Y42: 10792000 | Z42: 10591000 | AA42: 10409000 | AB42: 10243000 | AC42: 10092000 | AD42: 9953000 | AE42: 3261.7202
A43: Servicios Académicos Renata1600300 | B43: IT-RNT-RA-1.33 | C43: 1 | D43: Servicios Académicos Renata | E43: 1 | F43: 600 | G43: 300 | H43: Mes | I43: 36068000 | J43: 29336000 | K43: 25297000 | L43: 22605000 | M43: 20681000 | N43: 19239000 | O43: 18117000 | P43: 17219000 | Q43: 16485000 | R43: 15873000 | S43: 15355000 | T43: 14911000 | U43: 14527000 | V43: 14190000 | W43: 13893000 | X43: 13630000 | Y43: 13393000 | Z43: 13180000 | AA43: 12988000 | AB43: 12813000 | AC43: 12653000 | AD43: 12507000 | AE43: 3261.7202
A44: Servicios Académicos Renata16500 | B44: IT-RNT-RA-1.34 | C44: 1 | D44: Servicios Académicos Renata | E44: 1 | F44: 650 | G44: 0 | H44: Mes | I44: 29126000 | J44: 22862000 | K44: 19103000 | L44: 16597000 | M44: 14807000 | N44: 13465000 | O44: 12421000 | P44: 11586000 | Q44: 10902000 | R44: 10333000 | S44: 9851000 | T44: 9438000 | U44: 9080000 | V44: 8767000 | W44: 8490000 | X44: 8245000 | Y44: 8025000 | Z44: 7827000 | AA44: 7648000 | AB44: 7485000 | AC44: 7337000 | AD44: 7201000 | AE44: 3261.7202
A45: Servicios Académicos Renata1650130 | B45: IT-RNT-RA-1.35 | C45: 1 | D45: Servicios Académicos Renata | E45: 1 | F45: 650 | G45: 130 | H45: Mes | I45: 33018000 | J45: 26210000 | K45: 22125000 | L45: 19401000 | M45: 17456000 | N45: 15997000 | O45: 14863000 | P45: 13955000 | Q45: 13212000 | R45: 12593000 | S45: 12069000 | T45: 11620000 | U45: 11231000 | V45: 10891000 | W45: 10590000 | X45: 10324000 | Y45: 10085000 | Z45: 9870000 | AA45: 9675000 | AB45: 9498000 | AC45: 9337000 | AD45: 9189000 | AE45: 3261.7202
A46: Servicios Académicos Renata1650325 | B46: IT-RNT-RA-1.36 | C46: 1 | D46: Servicios Académicos Renata | E46: 1 | F46: 650 | G46: 325 | H46: Mes | I46: 37127000 | J46: 29936000 | K46: 25620000 | L46: 22743000 | M46: 20688000 | N46: 19147000 | O46: 17949000 | P46: 16990000 | Q46: 16205000 | R46: 15552000 | S46: 14998000 | T46: 14524000 | U46: 14113000 | V46: 13754000 | W46: 13436000 | X46: 13155000 | Y46: 12902000 | Z46: 12675000 | AA46: 12469000 | AB46: 12282000 | AC46: 12112000 | AD46: 11956000 | AE46: 3261.7202
A47: Servicios Académicos Renata17000 | B47: IT-RNT-RA-1.37 | C47: 1 | D47: Servicios Académicos Renata | E47: 1 | F47: 700 | G47: 0 | H47: Mes | I47: 31084000 | J47: 24409000 | K47: 20403000 | L47: 17733000 | M47: 15826000 | N47: 14395000 | O47: 13282000 | P47: 12392000 | Q47: 11664000 | R47: 11057000 | S47: 10544000 | T47: 10104000 | U47: 9722000 | V47: 9388000 | W47: 9094000 | X47: 8832000 | Y47: 8598000 | Z47: 8387000 | AA47: 8196000 | AB47: 8023000 | AC47: 7864000 | AD47: 7719000 | AE47: 3261.7202
A48: Servicios Académicos Renata1700140 | B48: IT-RNT-RA-1.38 | C48: 1 | D48: Servicios Académicos Renata | E48: 1 | F48: 700 | G48: 140 | H48: Mes | I48: 35187000 | J48: 27948000 | K48: 23604000 | L48: 20709000 | M48: 18641000 | N48: 17089000 | O48: 15882000 | P48: 14917000 | Q48: 14127000 | R48: 13469000 | S48: 12913000 | T48: 12435000 | U48: 12021000 | V48: 11659000 | W48: 11340000 | X48: 11056000 | Y48: 10802000 | Z48: 10573000 | AA48: 10366000 | AB48: 10179000 | AC48: 10006000 | AD48: 9849000 | AE48: 3261.7202
A49: Servicios Académicos Renata18000 | B49: IT-RNT-RA-1.39 | C49: 1 | D49: Servicios Académicos Renata | E49: 1 | F49: 800 | G49: 0 | H49: Mes | I49: 35001000 | J49: 27503000 | K49: 23004000 | L49: 20004000 | M49: 17862000 | N49: 16255000 | O49: 15005000 | P49: 14006000 | Q49: 13188000 | R49: 12506000 | S49: 11929000 | T49: 11435000 | U49: 11006000 | V49: 10631000 | W49: 10300000 | X49: 10006000 | Y49: 9743000 | Z49: 9506000 | AA49: 9292000 | AB49: 9097000 | AC49: 8920000 | AD49: 8757000 | AE49: 3261.7202
A50: Servicios Académicos Renata1800200 | B50: IT-RNT-RA-1.40 | C50: 1 | D50: Servicios Académicos Renata | E50: 1 | F50: 800 | G50: 200 | H50: Mes | I50: 40368000 | J50: 32189000 | K50: 27281000 | L50: 24008000 | M50: 21671000 | N50: 19918000 | O50: 18554000 | P50: 17465000 | Q50: 16572000 | R50: 15828000 | S50: 15199000 | T50: 14660000 | U50: 14192000 | V50: 13783000 | W50: 13422000 | X50: 13101000 | Y50: 12814000 | Z50: 12556000 | AA50: 12322000 | AB50: 12109000 | AC50: 11916000 | AD50: 11738000 | AE50: 3261.7202
A51: Servicios Académicos Renata19000 | B51: IT-RNT-RA-1.41 | C51: 1 | D51: Servicios Académicos Renata | E51: 1 | F51: 900 | G51: 0 | H51: Mes | I51: 38918000 | J51: 30597000 | K51: 25604000 | L51: 22276000 | M51: 19898000 | N51: 18115000 | O51: 16728000 | P51: 15619000 | Q51: 14711000 | R51: 13954000 | S51: 13314000 | T51: 12766000 | U51: 12290000 | V51: 11874000 | W51: 11507000 | X51: 11181000 | Y51: 10889000 | Z51: 10626000 | AA51: 10388000 | AB51: 10172000 | AC51: 9975000 | AD51: 9794000 | AE51: 3261.7202
A52: Servicios Académicos Renata110000 | B52: IT-RNT-RA-1.42 | C52: 1 | D52: Servicios Académicos Renata | E52: 1 | F52: 1000 | G52: 0 | H52: Mes | I52: 42834000 | J52: 33690000 | K52: 28204000 | L52: 24547000 | M52: 21934000 | N52: 19975000 | O52: 18451000 | P52: 17232000 | Q52: 16234000 | R52: 15403000 | S52: 14700000 | T52: 14097000 | U52: 13574000 | V52: 13117000 | W52: 12714000 | X52: 12355000 | Y52: 12034000 | Z52: 11746000 | AA52: 11484000 | AB52: 11247000 | AC52: 11030000 | AD52: 10831000 | AE52: 3261.7202
A53: Servicios Académicos Renata2500 | B53: IT-RNT-RA-2.1 | C53: 1 | D53: Servicios Académicos Renata | E53: 2 | F53: 50 | G53: 0 | H53: Mes | I53: 7635000 | J53: 5808000 | K53: 4712000 | L53: 3982000 | M53: 3460000 | N53: 3069000 | O53: 2764000 | P53: 2520000 | Q53: 2321000 | R53: 2155000 | S53: 2014000 | T53: 1895000 | U53: 1790000 | V53: 1698000 | W53: 1617000 | X53: 1546000 | Y53: 1482000 | Z53: 1424000 | AA53: 1373000 | AB53: 1325000 | AC53: 1281000 | AD53: 1242000 | AE53: 4240
A54: Servicios Académicos Renata25010 | B54: IT-RNT-RA-2.2 | C54: 1 | D54: Servicios Académicos Renata | E54: 2 | F54: 50 | G54: 10 | H54: Mes | I54: 9249000 | J54: 7079000 | K54: 5775000 | L54: 4908000 | M54: 4288000 | N54: 3822000 | O54: 3460000 | P54: 3171000 | Q54: 2934000 | R54: 2737000 | S54: 2570000 | T54: 2427000 | U54: 2303000 | V54: 2194000 | W54: 2098000 | X54: 2013000 | Y54: 1938000 | Z54: 1868000 | AA54: 1808000 | AB54: 1750000 | AC54: 1699000 | AD54: 1651000 | AE54: 4240
A55: Servicios Académicos Renata25025 | B55: IT-RNT-RA-2.3 | C55: 1 | D55: Servicios Académicos Renata | E55: 2 | F55: 50 | G55: 25 | H55: Mes | I55: 9855000 | J55: 7621000 | K55: 6282000 | L55: 5390000 | M55: 4752000 | N55: 4273000 | O55: 3901000 | P55: 3603000 | Q55: 3359000 | R55: 3157000 | S55: 2985000 | T55: 2839000 | U55: 2711000 | V55: 2598000 | W55: 2499000 | X55: 2412000 | Y55: 2334000 | Z55: 2263000 | AA55: 2200000 | AB55: 2141000 | AC55: 2089000 | AD55: 2041000 | AE55: 4240
A56: Servicios Académicos Renata21000 | B56: IT-RNT-RA-2.4 | C56: 1 | D56: Servicios Académicos Renata | E56: 2 | F56: 100 | G56: 0 | H56: Mes | I56: 11417000 | J56: 8727000 | K56: 7113000 | L56: 6037000 | M56: 5268000 | N56: 4692000 | O56: 4244000 | P56: 3885000 | Q56: 3591000 | R56: 3347000 | S56: 3140000 | T56: 2963000 | U56: 2809000 | V56: 2675000 | W56: 2556000 | X56: 2450000 | Y56: 2357000 | Z56: 2272000 | AA56: 2194000 | AB56: 2125000 | AC56: 2061000 | AD56: 2002000 | AE56: 4240
A57: Servicios Académicos Renata210020 | B57: IT-RNT-RA-2.5 | C57: 1 | D57: Servicios Académicos Renata | E57: 2 | F57: 100 | G57: 20 | H57: Mes | I57: 13435000 | J57: 10360000 | K57: 8514000 | L57: 7284000 | M57: 6405000 | N57: 5746000 | O57: 5234000 | P57: 4824000 | Q57: 4488000 | R57: 4209000 | S57: 3972000 | T57: 3769000 | U57: 3594000 | V57: 3440000 | W57: 3305000 | X57: 3183000 | Y57: 3077000 | Z57: 2979000 | AA57: 2890000 | AB57: 2811000 | AC57: 2738000 | AD57: 2671000 | AE57: 4240
A58: Servicios Académicos Renata210050 | B58: IT-RNT-RA-2.6 | C58: 1 | D58: Servicios Académicos Renata | E58: 2 | F58: 100 | G58: 50 | H58: Mes | I58: 14646000 | J58: 11447000 | K58: 9527000 | L58: 8247000 | M58: 7333000 | N58: 6647000 | O58: 6115000 | P58: 5688000 | Q58: 5339000 | R58: 5048000 | S58: 4802000 | T58: 4591000 | U58: 4408000 | V58: 4249000 | W58: 4107000 | X58: 3981000 | Y58: 3870000 | Z58: 3769000 | AA58: 3677000 | AB58: 3595000 | AC58: 3518000 | AD58: 3449000 | AE58: 4240
A59: Servicios Académicos Renata21500 | B59: IT-RNT-RA-2.7 | C59: 1 | D59: Servicios Académicos Renata | E59: 2 | F59: 150 | G59: 0 | H59: Mes | I59: 15200000 | J59: 11646000 | K59: 9515000 | L59: 8093000 | M59: 7077000 | N59: 6316000 | O59: 5724000 | P59: 5250000 | Q59: 4862000 | R59: 4540000 | S59: 4266000 | T59: 4031000 | U59: 3829000 | V59: 3651000 | W59: 3494000 | X59: 3355000 | Y59: 3230000 | Z59: 3118000 | AA59: 3016000 | AB59: 2924000 | AC59: 2840000 | AD59: 2763000 | AE59: 4240
A60: Servicios Académicos Renata215030 | B60: IT-RNT-RA-2.8 | C60: 1 | D60: Servicios Académicos Renata | E60: 2 | F60: 150 | G60: 30 | H60: Mes | I60: 17622000 | J60: 13641000 | K60: 11253000 | L60: 9660000 | M60: 8523000 | N60: 7671000 | O60: 7008000 | P60: 6477000 | Q60: 6042000 | R60: 5681000 | S60: 5374000 | T60: 5112000 | U60: 4885000 | V60: 4687000 | W60: 4510000 | X60: 4355000 | Y60: 4214000 | Z60: 4089000 | AA60: 3975000 | AB60: 3871000 | AC60: 3777000 | AD60: 3691000 | AE60: 4240
A61: Servicios Académicos Renata215075 | B61: IT-RNT-RA-2.9 | C61: 1 | D61: Servicios Académicos Renata | E61: 2 | F61: 150 | G61: 75 | H61: Mes | I61: 19438000 | J61: 15271000 | K61: 12772000 | L61: 11105000 | M61: 9916000 | N61: 9023000 | O61: 8328000 | P61: 7774000 | Q61: 7318000 | R61: 6940000 | S61: 6619000 | T61: 6345000 | U61: 6106000 | V61: 5898000 | W61: 5715000 | X61: 5552000 | Y61: 5405000 | Z61: 5274000 | AA61: 5154000 | AB61: 5046000 | AC61: 4947000 | AD61: 4858000 | AE61: 4240
A62: Servicios Académicos Renata22000 | B62: IT-RNT-RA-2.10 | C62: 1 | D62: Servicios Académicos Renata | E62: 2 | F62: 200 | G62: 0 | H62: Mes | I62: 18982000 | J62: 14566000 | K62: 11916000 | L62: 10149000 | M62: 8887000 | N62: 7941000 | O62: 7203000 | P62: 6615000 | Q62: 6134000 | R62: 5731000 | S62: 5392000 | T62: 5100000 | U62: 4848000 | V62: 4628000 | W62: 4433000 | X62: 4259000 | Y62: 4104000 | Z62: 3965000 | AA62: 3838000 | AB62: 3724000 | AC62: 3619000 | AD62: 3523000 | AE62: 4240
A63: Servicios Académicos Renata220040 | B63: IT-RNT-RA-2.11 | C63: 1 | D63: Servicios Académicos Renata | E63: 2 | F63: 200 | G63: 40 | H63: Mes | I63: 21807000 | J63: 16923000 | K63: 13992000 | L63: 12038000 | M63: 10642000 | N63: 9595000 | O63: 8781000 | P63: 8131000 | Q63: 7597000 | R63: 7153000 | S63: 6777000 | T63: 6455000 | U63: 6176000 | V63: 5932000 | W63: 5717000 | X63: 5525000 | Y63: 5352000 | Z63: 5199000 | AA63: 5059000 | AB63: 4932000 | AC63: 4816000 | AD63: 4711000 | AE63: 4240
A64: Servicios Académicos Renata2200100 | B64: IT-RNT-RA-2.12 | C64: 1 | D64: Servicios Académicos Renata | E64: 2 | F64: 200 | G64: 100 | H64: Mes | I64: 24228000 | J64: 19097000 | K64: 16017000 | L64: 13964000 | M64: 12498000 | N64: 11398000 | O64: 10541000 | P64: 9858000 | Q64: 9298000 | R64: 8831000 | S64: 8437000 | T64: 8098000 | U64: 7805000 | V64: 7549000 | W64: 7322000 | X64: 7121000 | Y64: 6940000 | Z64: 6779000 | AA64: 6631000 | AB64: 6498000 | AC64: 6376000 | AD64: 6265000 | AE64: 4240
A65: Servicios Académicos Renata22500 | B65: IT-RNT-RA-2.13 | C65: 1 | D65: Servicios Académicos Renata | E65: 2 | F65: 250 | G65: 0 | H65: Mes | I65: 22766000 | J65: 17485000 | K65: 14316000 | L65: 12205000 | M65: 10696000 | N65: 9564000 | O65: 8684000 | P65: 7979000 | Q65: 7404000 | R65: 6924000 | S65: 6518000 | T65: 6169000 | U65: 5868000 | V65: 5603000 | W65: 5370000 | X65: 5163000 | Y65: 4979000 | Z65: 4812000 | AA65: 4660000 | AB65: 4524000 | AC65: 4398000 | AD65: 4283000 | AE65: 4240
A66: Servicios Académicos Renata225050 | B66: IT-RNT-RA-2.14 | C66: 1 | D66: Servicios Académicos Renata | E66: 2 | F66: 250 | G66: 50 | H66: Mes | I66: 25994000 | J66: 20205000 | K66: 16730000 | L66: 14415000 | M66: 12760000 | N66: 11519000 | O66: 10555000 | P66: 9782000 | Q66: 9151000 | R66: 8625000 | S66: 8180000 | T66: 7798000 | U66: 7467000 | V66: 7177000 | W66: 6921000 | X66: 6694000 | Y66: 6492000 | Z66: 6309000 | AA66: 6143000 | AB66: 5994000 | AC66: 5855000 | AD66: 5730000 | AE66: 4240
A67: Servicios Académicos Renata2250125 | B67: IT-RNT-RA-2.15 | C67: 1 | D67: Servicios Académicos Renata | E67: 2 | F67: 250 | G67: 125 | H67: Mes | I67: 29020000 | J67: 22922000 | K67: 19262000 | L67: 16823000 | M67: 15080000 | N67: 13772000 | O67: 12756000 | P67: 11942000 | Q67: 11277000 | R67: 10723000 | S67: 10254000 | T67: 9852000 | U67: 9503000 | V67: 9197000 | W67: 8929000 | X67: 8689000 | Y67: 8476000 | Z67: 8283000 | AA67: 8109000 | AB67: 7951000 | AC67: 7805000 | AD67: 7673000 | AE67: 4240
A68: Servicios Académicos Renata23000 | B68: IT-RNT-RA-2.16 | C68: 1 | D68: Servicios Académicos Renata | E68: 2 | F68: 300 | G68: 0 | H68: Mes | I68: 26548000 | J68: 20404000 | K68: 16718000 | L68: 14259000 | M68: 12505000 | N68: 11188000 | O68: 10163000 | P68: 9344000 | Q68: 8675000 | R68: 8116000 | S68: 7643000 | T68: 7238000 | U68: 6887000 | V68: 6580000 | W68: 6309000 | X68: 6067000 | Y68: 5852000 | Z68: 5658000 | AA68: 5483000 | AB68: 5323000 | AC68: 5177000 | AD68: 5044000 | AE68: 4240
A69: Servicios Académicos Renata230060 | B69: IT-RNT-RA-2.17 | C69: 1 | D69: Servicios Académicos Renata | E69: 2 | F69: 300 | G69: 60 | H69: Mes | I69: 30180000 | J69: 23486000 | K69: 19469000 | L69: 16791000 | M69: 14879000 | N69: 13445000 | O69: 12327000 | P69: 11435000 | Q69: 10705000 | R69: 10096000 | S69: 9582000 | T69: 9141000 | U69: 8759000 | V69: 8423000 | W69: 8127000 | X69: 7865000 | Y69: 7630000 | Z69: 7419000 | AA69: 7228000 | AB69: 7053000 | AC69: 6895000 | AD69: 6749000 | AE69: 4240
A70: Servicios Académicos Renata2300150 | B70: IT-RNT-RA-2.18 | C70: 1 | D70: Servicios Académicos Renata | E70: 2 | F70: 300 | G70: 150 | H70: Mes | I70: 33812000 | J70: 26746000 | K70: 22506000 | L70: 19680000 | M70: 17661000 | N70: 16147000 | O70: 14969000 | P70: 14027000 | Q70: 13257000 | R70: 12614000 | S70: 12071000 | T70: 11605000 | U70: 11202000 | V70: 10848000 | W70: 10536000 | X70: 10259000 | Y70: 10011000 | Z70: 9788000 | AA70: 9586000 | AB70: 9402000 | AC70: 9234000 | AD70: 9081000 | AE70: 4240
A71: Servicios Académicos Renata23500 | B71: IT-RNT-RA-2.19 | C71: 1 | D71: Servicios Académicos Renata | E71: 2 | F71: 350 | G71: 0 | H71: Mes | I71: 30331000 | J71: 23323000 | K71: 19119000 | L71: 16315000 | M71: 14313000 | N71: 12812000 | O71: 11644000 | P71: 10709000 | Q71: 9945000 | R71: 9308000 | S71: 8769000 | T71: 8307000 | U71: 7907000 | V71: 7556000 | W71: 7247000 | X71: 6972000 | Y71: 6727000 | Z71: 6505000 | AA71: 6305000 | AB71: 6123000 | AC71: 5956000 | AD71: 5804000 | AE71: 4240
A72: Servicios Académicos Renata235070 | B72: IT-RNT-RA-2.20 | C72: 1 | D72: Servicios Académicos Renata | E72: 2 | F72: 350 | G72: 70 | H72: Mes | I72: 34366000 | J72: 26767000 | K72: 22208000 | L72: 19167000 | M72: 16996000 | N72: 15368000 | O72: 14102000 | P72: 13089000 | Q72: 12259000 | R72: 11568000 | S72: 10985000 | T72: 10483000 | U72: 10049000 | V72: 9669000 | W72: 9333000 | X72: 9036000 | Y72: 8769000 | Z72: 8529000 | AA72: 8311000 | AB72: 8115000 | AC72: 7933000 | AD72: 7768000 | AE72: 4240
A73: Servicios Académicos Renata2350175 | B73: IT-RNT-RA-2.21 | C73: 1 | D73: Servicios Académicos Renata | E73: 2 | F73: 350 | G73: 175 | H73: Mes | I73: 38604000 | J73: 30571000 | K73: 25752000 | L73: 22539000 | M73: 20243000 | N73: 18522000 | O73: 17184000 | P73: 16113000 | Q73: 15236000 | R73: 14505000 | S73: 13888000 | T73: 13359000 | U73: 12900000 | V73: 12498000 | W73: 12143000 | X73: 11829000 | Y73: 11547000 | Z73: 11293000 | AA73: 11063000 | AB73: 10855000 | AC73: 10664000 | AD73: 10489000 | AE73: 4240
A74: Servicios Académicos Renata24000 | B74: IT-RNT-RA-2.22 | C74: 1 | D74: Servicios Académicos Renata | E74: 2 | F74: 400 | G74: 0 | H74: Mes | I74: 34113000 | J74: 26242000 | K74: 21519000 | L74: 18371000 | M74: 16122000 | N74: 14436000 | O74: 13123000 | P74: 12074000 | Q74: 11216000 | R74: 10500000 | S74: 9895000 | T74: 9376000 | U74: 8925000 | V74: 8533000 | W74: 8185000 | X74: 7877000 | Y74: 7600000 | Z74: 7352000 | AA74: 7127000 | AB74: 6922000 | AC74: 6736000 | AD74: 6565000 | AE74: 4240
A75: Servicios Académicos Renata240080 | B75: IT-RNT-RA-2.23 | C75: 1 | D75: Servicios Académicos Renata | E75: 2 | F75: 400 | G75: 80 | H75: Mes | I75: 38552000 | J75: 30048000 | K75: 24945000 | L75: 21544000 | M75: 19115000 | N75: 17293000 | O75: 15874000 | P75: 14741000 | Q75: 13813000 | R75: 13040000 | S75: 12386000 | T75: 11826000 | U75: 11339000 | V75: 10915000 | W75: 10539000 | X75: 10205000 | Y75: 9907000 | Z75: 9638000 | AA75: 9396000 | AB75: 9174000 | AC75: 8974000 | AD75: 8789000 | AE75: 4240
A76: =D76&E76&F76&G76 -> Servicios Académicos Renata2400200 | B76: IT-RNT-RA-2.24 | C76: 1 | D76: Servicios Académicos Renata | E76: 2 | F76: 400 | G76: 200 | H76: Mes | I76: 43395000 | J76: 34395000 | K76: 28996000 | L76: 25397000 | M76: 22825000 | N76: 20898000 | O76: 19397000 | P76: 18197000 | Q76: 17215000 | R76: 16397000 | S76: 15705000 | T76: 15112000 | U76: 14598000 | V76: 14148000 | W76: 13750000 | X76: 13397000 | Y76: 13082000 | Z76: 12798000 | AA76: 12541000 | AB76: 12306000 | AC76: 12094000 | AD76: 11898000 | AE76: 4240
A77: Servicios Académicos Renata24500 | B77: IT-RNT-RA-2.25 | C77: 1 | D77: Servicios Académicos Renata | E77: 2 | F77: 450 | G77: 0 | H77: Mes | I77: 37896000 | J77: 29161000 | K77: 23921000 | L77: 20427000 | M77: 17931000 | N77: 16059000 | O77: 14604000 | P77: 13439000 | Q77: 12486000 | R77: 11692000 | S77: 11020000 | T77: 10445000 | U77: 9945000 | V77: 9508000 | W77: 9123000 | X77: 8781000 | Y77: 8474000 | Z77: 8199000 | AA77: 7949000 | AB77: 7722000 | AC77: 7515000 | AD77: 7325000 | AE77: 4240
A78: Servicios Académicos Renata245090 | B78: IT-RNT-RA-2.26 | C78: 1 | D78: Servicios Académicos Renata | E78: 2 | F78: 450 | G78: 90 | H78: Mes | I78: 42739000 | J78: 33330000 | K78: 27685000 | L78: 23922000 | M78: 21233000 | N78: 19217000 | O78: 17649000 | P78: 16394000 | Q78: 15367000 | R78: 14513000 | S78: 13788000 | T78: 13169000 | U78: 12630000 | V78: 12159000 | W78: 11745000 | X78: 11376000 | Y78: 11045000 | Z78: 10749000 | AA78: 10481000 | AB78: 10236000 | AC78: 10013000 | AD78: 9809000 | AE78: 4240
A79: Servicios Académicos Renata2450225 | B79: IT-RNT-RA-2.27 | C79: 1 | D79: Servicios Académicos Renata | E79: 2 | F79: 450 | G79: 225 | H79: Mes | I79: 48187000 | J79: 38220000 | K79: 32241000 | L79: 28255000 | M79: 25407000 | N79: 23272000 | O79: 21612000 | P79: 20282000 | Q79: 19194000 | R79: 18289000 | S79: 17522000 | T79: 16866000 | U79: 16295000 | V79: 15797000 | W79: 15358000 | X79: 14967000 | Y79: 14618000 | Z79: 14303000 | AA79: 14018000 | AB79: 13759000 | AC79: 13523000 | AD79: 13306000 | AE79: 4240
A80: Servicios Académicos Renata25000 | B80: IT-RNT-RA-2.28 | C80: 1 | D80: Servicios Académicos Renata | E80: 2 | F80: 500 | G80: 0 | H80: Mes | I80: 41678000 | J80: 32080000 | K80: 26322000 | L80: 22482000 | M80: 19740000 | N80: 17684000 | O80: 16083000 | P80: 14804000 | Q80: 13757000 | R80: 12884000 | S80: 12146000 | T80: 11514000 | U80: 10965000 | V80: 10485000 | W80: 10062000 | X80: 9685000 | Y80: 9349000 | Z80: 9045000 | AA80: 8771000 | AB80: 8521000 | AC80: 8294000 | AD80: 8085000 | AE80: 4240
A81: Servicios Académicos Renata2500100 | B81: IT-RNT-RA-2.29 | C81: 1 | D81: Servicios Académicos Renata | E81: 2 | F81: 500 | G81: 100 | H81: Mes | I81: 46924000 | J81: 36611000 | K81: 30423000 | L81: 26298000 | M81: 23351000 | N81: 21141000 | O81: 19421000 | P81: 18047000 | Q81: 16921000 | R81: 15984000 | S81: 15191000 | T81: 14511000 | U81: 13921000 | V81: 13406000 | W81: 12951000 | X81: 12546000 | Y81: 12185000 | Z81: 11859000 | AA81: 11564000 | AB81: 11295000 | AC81: 11052000 | AD81: 10827000 | AE81: 4240
A82: Servicios Académicos Renata2500250 | B82: IT-RNT-RA-2.30 | C82: 1 | D82: Servicios Académicos Renata | E82: 2 | F82: 500 | G82: 250 | H82: Mes | I82: 52978000 | J82: 42046000 | K82: 35486000 | L82: 31113000 | M82: 27990000 | N82: 25647000 | O82: 23824000 | P82: 22368000 | Q82: 21174000 | R82: 20180000 | S82: 19339000 | T82: 18619000 | U82: 17993000 | V82: 17447000 | W82: 16965000 | X82: 16536000 | Y82: 16153000 | Z82: 15807000 | AA82: 15495000 | AB82: 15211000 | AC82: 14952000 | AD82: 14714000 | AE82: 4240
A83: Servicios Académicos Renata26000 | B83: IT-RNT-RA-2.31 | C83: 1 | D83: Servicios Académicos Renata | E83: 2 | F83: 600 | G83: 0 | H83: Mes | I83: 50740000 | J83: 39414000 | K83: 32620000 | L83: 28090000 | M83: 24854000 | N83: 22427000 | O83: 20540000 | P83: 19030000 | Q83: 17795000 | R83: 16765000 | S83: 15893000 | T83: 15147000 | U83: 14500000 | V83: 13934000 | W83: 13434000 | X83: 12990000 | Y83: 12592000 | Z83: 12235000 | AA83: 11912000 | AB83: 11618000 | AC83: 11349000 | AD83: 11102000 | AE83: 4240
A84: Servicios Académicos Renata2600120 | B84: IT-RNT-RA-2.32 | C84: 1 | D84: Servicios Académicos Renata | E84: 2 | F84: 600 | G84: 120 | H84: Mes | I84: 56793000 | J84: 44670000 | K84: 37396000 | L84: 32547000 | M84: 29083000 | N84: 26486000 | O84: 24464000 | P84: 22848000 | Q84: 21527000 | R84: 20424000 | S84: 19492000 | T84: 18692000 | U84: 18000000 | V84: 17394000 | W84: 16858000 | X84: 16384000 | Y84: 15957000 | Z84: 15575000 | AA84: 15229000 | AB84: 14915000 | AC84: 14627000 | AD84: 14362000 | AE84: 4240
A85: Servicios Académicos Renata2600300 | B85: IT-RNT-RA-2.33 | C85: 1 | D85: Servicios Académicos Renata | E85: 2 | F85: 600 | G85: 300 | H85: Mes | I85: 64058000 | J85: 51191000 | K85: 43472000 | L85: 38325000 | M85: 34649000 | N85: 31893000 | O85: 29748000 | P85: 28032000 | Q85: 26630000 | R85: 25460000 | S85: 24470000 | T85: 23621000 | U85: 22886000 | V85: 22244000 | W85: 21676000 | X85: 21172000 | Y85: 20719000 | Z85: 20314000 | AA85: 19946000 | AB85: 19612000 | AC85: 19307000 | AD85: 19026000 | AE85: 4240
A86: Servicios Académicos Renata26500 | B86: IT-RNT-RA-2.34 | C86: 1 | D86: Servicios Académicos Renata | E86: 2 | F86: 650 | G86: 0 | H86: Mes | I86: 53027000 | J86: 40838000 | K86: 33525000 | L86: 28650000 | M86: 25167000 | N86: 22554000 | O86: 20524000 | P86: 18898000 | Q86: 17569000 | R86: 16460000 | S86: 15524000 | T86: 14719000 | U86: 14023000 | V86: 13413000 | W86: 12876000 | X86: 12398000 | Y86: 11970000 | Z86: 11585000 | AA86: 11238000 | AB86: 10920000 | AC86: 10632000 | AD86: 10366000 | AE86: 4240
A87: Servicios Académicos Renata2650130 | B87: IT-RNT-RA-2.35 | C87: 1 | D87: Servicios Académicos Renata | E87: 2 | F87: 650 | G87: 130 | H87: Mes | I87: 59483000 | J87: 46456000 | K87: 38639000 | L87: 33428000 | M87: 29705000 | N87: 26913000 | O87: 24743000 | P87: 23005000 | Q87: 21584000 | R87: 20399000 | S87: 19398000 | T87: 18538000 | U87: 17795000 | V87: 17143000 | W87: 16567000 | X87: 16057000 | Y87: 15600000 | Z87: 15189000 | AA87: 14817000 | AB87: 14478000 | AC87: 14169000 | AD87: 13886000 | AE87: 4240
A88: Servicios Académicos Renata2650325 | B88: IT-RNT-RA-2.36 | C88: 1 | D88: Servicios Académicos Renata | E88: 2 | F88: 650 | G88: 325 | H88: Mes | I88: 67353000 | J88: 53521000 | K88: 45221000 | L88: 39688000 | M88: 35735000 | N88: 32771000 | O88: 30466000 | P88: 28621000 | Q88: 27113000 | R88: 25855000 | S88: 24791000 | T88: 23879000 | U88: 23089000 | V88: 22396000 | W88: 21786000 | X88: 21244000 | Y88: 20759000 | Z88: 20322000 | AA88: 19927000 | AB88: 19567000 | AC88: 19240000 | AD88: 18938000 | AE88: 4240
A89: Servicios Académicos Renata27000 | B89: IT-RNT-RA-2.37 | C89: 1 | D89: Servicios Académicos Renata | E89: 2 | F89: 700 | G89: 0 | H89: Mes | I89: 56809000 | J89: 43757000 | K89: 35925000 | L89: 30705000 | M89: 26976000 | N89: 24179000 | O89: 22003000 | P89: 20263000 | Q89: 18840000 | R89: 17653000 | S89: 16649000 | T89: 15788000 | U89: 15043000 | V89: 14390000 | W89: 13814000 | X89: 13302000 | Y89: 12844000 | Z89: 12432000 | AA89: 12060000 | AB89: 11721000 | AC89: 11411000 | AD89: 11127000 | AE89: 4240
A90: Servicios Académicos Renata2700140 | B90: IT-RNT-RA-2.38 | C90: 1 | D90: Servicios Académicos Renata | E90: 2 | F90: 700 | G90: 140 | H90: Mes | I90: 63669000 | J90: 49737000 | K90: 41377000 | L90: 35804000 | M90: 31824000 | N90: 28838000 | O90: 26515000 | P90: 24659000 | Q90: 23138000 | R90: 21872000 | S90: 20800000 | T90: 19881000 | U90: 19085000 | V90: 18388000 | W90: 17774000 | X90: 17227000 | Y90: 16739000 | Z90: 16299000 | AA90: 15901000 | AB90: 15539000 | AC90: 15209000 | AD90: 14906000 | AE90: 4240
A91: Servicios Académicos Renata28000 | B91: IT-RNT-RA-2.39 | C91: 1 | D91: Servicios Académicos Renata | E91: 2 | F91: 800 | G91: 0 | H91: Mes | I91: 64374000 | J91: 49595000 | K91: 40728000 | L91: 34816000 | M91: 30593000 | N91: 27426000 | O91: 24963000 | P91: 22993000 | Q91: 21381000 | R91: 20038000 | S91: 18900000 | T91: 17926000 | U91: 17082000 | V91: 16343000 | W91: 15691000 | X91: 15111000 | Y91: 14592000 | Z91: 14126000 | AA91: 13703000 | AB91: 13320000 | AC91: 12969000 | AD91: 12648000 | AE91: 4240
A92: Servicios Académicos Renata2800200 | B92: IT-RNT-RA-2.40 | C92: 1 | D92: Servicios Académicos Renata | E92: 2 | F92: 800 | G92: 200 | H92: Mes | I92: 73656000 | J92: 57748000 | K92: 48205000 | L92: 41842000 | M92: 37296000 | N92: 33888000 | O92: 31237000 | P92: 29116000 | Q92: 27380000 | R92: 25934000 | S92: 24711000 | T92: 23662000 | U92: 22754000 | V92: 21958000 | W92: 21256000 | X92: 20632000 | Y92: 20074000 | Z92: 19572000 | AA92: 19117000 | AB92: 18704000 | AC92: 18327000 | AD92: 17981000 | AE92: 4240
A93: Servicios Académicos Renata29000 | B93: IT-RNT-RA-2.41 | C93: 1 | D93: Servicios Académicos Renata | E93: 2 | F93: 900 | G93: 0 | H93: Mes | I93: 71939000 | J93: 55433000 | K93: 45530000 | L93: 38927000 | M93: 34212000 | N93: 30674000 | O93: 27923000 | P93: 25722000 | Q93: 23922000 | R93: 22421000 | S93: 21152000 | T93: 20064000 | U93: 19120000 | V93: 18295000 | W93: 17567000 | X93: 16919000 | Y93: 16341000 | Z93: 15819000 | AA93: 15347000 | AB93: 14919000 | AC93: 14527000 | AD93: 14168000 | AE93: 4240
A94: Servicios Académicos Renata210000 | B94: IT-RNT-RA-2.42 | C94: 1 | D94: Servicios Académicos Renata | E94: 2 | F94: 1000 | G94: 0 | H94: Mes | I94: 79504000 | J94: 61271000 | K94: 50332000 | L94: 43039000 | M94: 37829000 | N94: 33922000 | O94: 30883000 | P94: 28452000 | Q94: 26464000 | R94: 24806000 | S94: 23403000 | T94: 22201000 | U94: 21159000 | V94: 20248000 | W94: 19443000 | X94: 18728000 | Y94: 18089000 | Z94: 17512000 | AA94: 16992000 | AB94: 16518000 | AC94: 16085000 | AD94: 15690000 | AE94: 4240
A95: Servicios Académicos Renata3100 | B95: IT-RNT-RA-3.1 | C95: 1 | D95: Servicios Académicos Renata | E95: 3 | F95: 10 | G95: 0 | H95: Mes | I95: 4162000 | J95: 2932000 | K95: 2744000 | L95: 2106000 | M95: 1762000 | N95: 1502000 | O95: 1356000 | P95: 1294000 | Q95: 1195000 | R95: 1020000 | S95: 956000 | T95: 942000 | U95: 892000 | V95: 849000 | W95: 811000 | X95: 777000 | Y95: 747000 | Z95: 719000 | AA95: 694000 | AB95: 654000 | AC95: 634000 | AD95: 605000 | AE95: 4240
A96: Servicios Académicos Renata382 | B96: IT-RNT-RA-3.2 | C96: 1 | D96: Servicios Académicos Renata | E96: 3 | F96: 8 | G96: 2 | H96: Mes | I96: 4338000 | J96: 3071000 | K96: 2877000 | L96: 2221000 | M96: 1866000 | N96: 1598000 | O96: 1449000 | P96: 1384000 | Q96: 1282000 | R96: 1102000 | S96: 1036000 | T96: 1022000 | U96: 971000 | V96: 926000 | W96: 887000 | X96: 852000 | Y96: 820000 | Z96: 792000 | AA96: 767000 | AB96: 726000 | AC96: 705000 | AD96: 675000 | AE96: 4240
A97: Servicios Académicos Renata364 | B97: IT-RNT-RA-3.3 | C97: 1 | D97: Servicios Académicos Renata | E97: 3 | F97: 6 | G97: 4 | H97: Mes | I97: 4571000 | J97: 3266000 | K97: 3067000 | L97: 2390000 | M97: 2025000 | N97: 1749000 | O97: 1595000 | P97: 1529000 | Q97: 1424000 | R97: 1238000 | S97: 1170000 | T97: 1155000 | U97: 1103000 | V97: 1057000 | W97: 1016000 | X97: 980000 | Y97: 948000 | Z97: 919000 | AA97: 893000 | AB97: 850000 | AC97: 829000 | AD97: 798000 | AE97: 4240
A98: Servicios Académicos Renata4100 | B98: IT-RNT-RA-4.1 | C98: 1 | D98: Servicios Académicos Renata | E98: 4 | F98: 10 | G98: 0 | H98: Mes | I98: 4162000 | J98: 2932000 | K98: 2744000 | L98: 2106000 | M98: 1762000 | N98: 1502000 | O98: 1356000 | P98: 1294000 | Q98: 1195000 | R98: 1020000 | S98: 956000 | T98: 942000 | U98: 892000 | V98: 849000 | W98: 811000 | X98: 777000 | Y98: 747000 | Z98: 719000 | AA98: 694000 | AB98: 654000 | AC98: 634000 | AD98: 605000 | AE98: 4240
A99: Servicios Académicos Renata482 | B99: IT-RNT-RA-4.2 | C99: 1 | D99: Servicios Académicos Renata | E99: 4 | F99: 8 | G99: 2 | H99: Mes | I99: 4338000 | J99: 3071000 | K99: 2877000 | L99: 2221000 | M99: 1866000 | N99: 1598000 | O99: 1449000 | P99: 1384000 | Q99: 1282000 | R99: 1102000 | S99: 1036000 | T99: 1022000 | U99: 971000 | V99: 926000 | W99: 887000 | X99: 852000 | Y99: 820000 | Z99: 792000 | AA99: 767000 | AB99: 726000 | AC99: 705000 | AD99: 675000 | AE99: 4240
A100: Servicios Académicos Renata464 | B100: IT-RNT-RA-4.3 | C100: 1 | D100: Servicios Académicos Renata | E100: 4 | F100: 6 | G100: 4 | H100: Mes | I100: 4571000 | J100: 3266000 | K100: 3067000 | L100: 2390000 | M100: 2025000 | N100: 1749000 | O100: 1595000 | P100: 1529000 | Q100: 1424000 | R100: 1238000 | S100: 1170000 | T100: 1155000 | U100: 1103000 | V100: 1057000 | W100: 1016000 | X100: 980000 | Y100: 948000 | Z100: 919000 | AA100: 893000 | AB100: 850000 | AC100: 829000 | AD100: 798000 | AE100: 4240
A101: Servicios Académicos Renata4200 | B101: IT-RNT-RA-4.4 | C101: 1 | D101: Servicios Académicos Renata | E101: 4 | F101: 20 | G101: 0 | H101: Mes | I101: 5324000 | J101: 3739000 | K101: 3490000 | L101: 2672000 | M101: 2229000 | N101: 1895000 | O101: 1708000 | P101: 1626000 | Q101: 1497000 | R101: 1275000 | S101: 1192000 | T101: 1173000 | U101: 1109000 | V101: 1053000 | W101: 1003000 | X101: 960000 | Y101: 920000 | Z101: 885000 | AA101: 853000 | AB101: 802000 | AC101: 777000 | AD101: 739000 | AE101: 4240
A102: Servicios Académicos Renata4155 | B102: IT-RNT-RA-4.5 | C102: 1 | D102: Servicios Académicos Renata | E102: 4 | F102: 15 | G102: 5 | H102: Mes | I102: 5612000 | J102: 3980000 | K102: 3723000 | L102: 2881000 | M102: 2425000 | N102: 2081000 | O102: 1888000 | P102: 1803000 | Q102: 1671000 | R102: 1442000 | S102: 1357000 | T102: 1337000 | U102: 1271000 | V102: 1213000 | W102: 1162000 | X102: 1117000 | Y102: 1077000 | Z102: 1040000 | AA102: 1007000 | AB102: 955000 | AC102: 929000 | AD102: 890000 | AE102: 4240
A103: Servicios Académicos Renata42010 | B103: IT-RNT-RA-4.6 | C103: 1 | D103: Servicios Académicos Renata | E103: 4 | F103: 20 | G103: 10 | H103: Mes | I103: 6743000 | J103: 4805000 | K103: 4494000 | L103: 3495000 | M103: 2955000 | N103: 2547000 | O103: 2317000 | P103: 2215000 | Q103: 2058000 | R103: 1788000 | S103: 1687000 | T103: 1661000 | U103: 1583000 | V103: 1514000 | W103: 1454000 | X103: 1400000 | Y103: 1352000 | Z103: 1308000 | AA103: 1269000 | AB103: 1208000 | AC103: 1176000 | AD103: 1131000 | AE103: 4240
A104: Servicios Académicos Renata43010 | B104: IT-RNT-RA-4.7 | C104: 1 | D104: Servicios Académicos Renata | E104: 4 | F104: 30 | G104: 10 | H104: Mes | I104: 8134000 | J104: 5773000 | K104: 5389000 | L104: 4175000 | M104: 3517000 | N104: 3021000 | O104: 2741000 | P104: 2615000 | Q104: 2423000 | R104: 2097000 | S104: 1974000 | T104: 1941000 | U104: 1845000 | V104: 1762000 | W104: 1688000 | X104: 1622000 | Y104: 1563000 | Z104: 1510000 | AA104: 1463000 | AB104: 1389000 | AC104: 1350000 | AD104: 1296000 | AE104: 4240
A105: Servicios Académicos Renata43020 | B105: IT-RNT-RA-4.8 | C105: 1 | D105: Servicios Académicos Renata | E105: 4 | F105: 30 | G105: 20 | H105: Mes | I105: 11170000 | J105: 8170000 | K105: 7678000 | L105: 6136000 | M105: 5301000 | N105: 4671000 | O105: 4314000 | P105: 4153000 | Q105: 3910000 | R105: 3497000 | S105: 3340000 | T105: 3297000 | U105: 3175000 | V105: 3069000 | W105: 2975000 | X105: 2891000 | Y105: 2816000 | Z105: 2749000 | AA105: 2688000 | AB105: 2595000 | AC105: 2546000 | AD105: 2478000 | AE105: 4240
A106: Servicios Académicos Renata43515 | B106: IT-RNT-RA-4.9 | C106: 1 | D106: Servicios Académicos Renata | E106: 4 | F106: 35 | G106: 15 | H106: Mes | I106: 10345000 | J106: 7432000 | K106: 6954000 | L106: 5457000 | M106: 4646000 | N106: 4035000 | O106: 3689000 | P106: 3532000 | Q106: 3296000 | R106: 2895000 | S106: 2742000 | T106: 2701000 | U106: 2583000 | V106: 2479000 | W106: 2388000 | X106: 2307000 | Y106: 2234000 | Z106: 2169000 | AA106: 2110000 | AB106: 2020000 | AC106: 1972000 | AD106: 1905000 | AE106: 4240
A107: Servicios Académicos Renata4400 | B107: IT-RNT-RA-4.10 | C107: 1 | D107: Servicios Académicos Renata | E107: 4 | F107: 40 | G107: 0 | H107: Mes | I107: 7647000 | J107: 5355000 | K107: 4982000 | L107: 3803000 | M107: 3164000 | N107: 2683000 | O107: 2411000 | P107: 2289000 | Q107: 2103000 | R107: 1786000 | S107: 1666000 | T107: 1634000 | U107: 1541000 | V107: 1460000 | W107: 1388000 | X107: 1325000 | Y107: 1268000 | Z107: 1216000 | AA107: 1170000 | AB107: 1098000 | AC107: 1061000 | AD107: 1008000 | AE107: 4240
A108: Servicios Académicos Renata44010 | B108: IT-RNT-RA-4.11 | C108: 1 | D108: Servicios Académicos Renata | E108: 4 | F108: 40 | G108: 10 | H108: Mes | I108: 9668000 | J108: 6840000 | K108: 6376000 | L108: 4923000 | M108: 4136000 | N108: 3542000 | O108: 3206000 | P108: 3054000 | Q108: 2824000 | R108: 2435000 | S108: 2287000 | T108: 2247000 | U108: 2132000 | V108: 2032000 | W108: 1943000 | X108: 1864000 | Y108: 1794000 | Z108: 1731000 | AA108: 1673000 | AB108: 1586000 | AC108: 1539000 | AD108: 1475000 | AE108: 4240
A109: Servicios Académicos Renata4500 | B109: IT-RNT-RA-4.12 | C109: 1 | D109: Servicios Académicos Renata | E109: 4 | F109: 50 | G109: 0 | H109: Mes | I109: 9137000 | J109: 6391000 | K109: 5940000 | L109: 4530000 | M109: 3765000 | N109: 3189000 | O109: 2863000 | P109: 2715000 | Q109: 2492000 | R109: 2114000 | S109: 1971000 | T109: 1932000 | U109: 1820000 | V109: 1723000 | W109: 1637000 | X109: 1560000 | Y109: 1492000 | Z109: 1430000 | AA109: 1374000 | AB109: 1289000 | AC109: 1244000 | AD109: 1182000 | AE109: 4240
A110: Servicios Académicos Renata5100 | B110: IT-RNT-RA-5.1 | C110: 1 | D110: Servicios Académicos Renata | E110: 5 | F110: 10 | G110: 0 | H110: Mes | I110: 4162000 | J110: 2932000 | K110: 2744000 | L110: 2106000 | M110: 1762000 | N110: 1502000 | O110: 1356000 | P110: 1294000 | Q110: 1195000 | R110: 1020000 | S110: 956000 | T110: 942000 | U110: 892000 | V110: 849000 | W110: 811000 | X110: 777000 | Y110: 747000 | Z110: 719000 | AA110: 694000 | AB110: 654000 | AC110: 634000 | AD110: 605000 | AE110: 4240
A111: Servicios Académicos Renata582 | B111: IT-RNT-RA-5.2 | C111: 1 | D111: Servicios Académicos Renata | E111: 5 | F111: 8 | G111: 2 | H111: Mes | I111: 4338000 | J111: 3071000 | K111: 2877000 | L111: 2221000 | M111: 1866000 | N111: 1598000 | O111: 1449000 | P111: 1384000 | Q111: 1282000 | R111: 1102000 | S111: 1036000 | T111: 1022000 | U111: 971000 | V111: 926000 | W111: 887000 | X111: 852000 | Y111: 820000 | Z111: 792000 | AA111: 767000 | AB111: 726000 | AC111: 705000 | AD111: 675000 | AE111: 4240
A112: Servicios Académicos Renata564 | B112: IT-RNT-RA-5.3 | C112: 1 | D112: Servicios Académicos Renata | E112: 5 | F112: 6 | G112: 4 | H112: Mes | I112: 4571000 | J112: 3266000 | K112: 3067000 | L112: 2390000 | M112: 2025000 | N112: 1749000 | O112: 1595000 | P112: 1529000 | Q112: 1424000 | R112: 1238000 | S112: 1170000 | T112: 1155000 | U112: 1103000 | V112: 1057000 | W112: 1016000 | X112: 980000 | Y112: 948000 | Z112: 919000 | AA112: 893000 | AB112: 850000 | AC112: 829000 | AD112: 798000 | AE112: 4240
A113: Servicios Académicos Renata5200 | B113: IT-RNT-RA-5.4 | C113: 1 | D113: Servicios Académicos Renata | E113: 5 | F113: 20 | G113: 0 | H113: Mes | I113: 5324000 | J113: 3739000 | K113: 3490000 | L113: 2672000 | M113: 2229000 | N113: 1895000 | O113: 1708000 | P113: 1626000 | Q113: 1497000 | R113: 1275000 | S113: 1192000 | T113: 1173000 | U113: 1109000 | V113: 1053000 | W113: 1003000 | X113: 960000 | Y113: 920000 | Z113: 885000 | AA113: 853000 | AB113: 802000 | AC113: 777000 | AD113: 739000 | AE113: 4240
A114: Servicios Académicos Renata5155 | B114: IT-RNT-RA-5.5 | C114: 1 | D114: Servicios Académicos Renata | E114: 5 | F114: 15 | G114: 5 | H114: Mes | I114: 5612000 | J114: 3980000 | K114: 3723000 | L114: 2881000 | M114: 2425000 | N114: 2081000 | O114: 1888000 | P114: 1803000 | Q114: 1671000 | R114: 1442000 | S114: 1357000 | T114: 1337000 | U114: 1271000 | V114: 1213000 | W114: 1162000 | X114: 1117000 | Y114: 1077000 | Z114: 1040000 | AA114: 1007000 | AB114: 955000 | AC114: 929000 | AD114: 890000 | AE114: 4240
A115: Servicios Académicos Renata52010 | B115: IT-RNT-RA-5.6 | C115: 1 | D115: Servicios Académicos Renata | E115: 5 | F115: 20 | G115: 10 | H115: Mes | I115: 6743000 | J115: 4805000 | K115: 4494000 | L115: 3495000 | M115: 2955000 | N115: 2547000 | O115: 2317000 | P115: 2215000 | Q115: 2058000 | R115: 1788000 | S115: 1687000 | T115: 1661000 | U115: 1583000 | V115: 1514000 | W115: 1454000 | X115: 1400000 | Y115: 1352000 | Z115: 1308000 | AA115: 1269000 | AB115: 1208000 | AC115: 1176000 | AD115: 1131000 | AE115: 4240
A116: Servicios Académicos Renata53010 | B116: IT-RNT-RA-5.7 | C116: 1 | D116: Servicios Académicos Renata | E116: 5 | F116: 30 | G116: 10 | H116: Mes | I116: 8134000 | J116: 5773000 | K116: 5389000 | L116: 4175000 | M116: 3517000 | N116: 3021000 | O116: 2741000 | P116: 2615000 | Q116: 2423000 | R116: 2097000 | S116: 1974000 | T116: 1941000 | U116: 1845000 | V116: 1762000 | W116: 1688000 | X116: 1622000 | Y116: 1563000 | Z116: 1510000 | AA116: 1463000 | AB116: 1389000 | AC116: 1350000 | AD116: 1296000 | AE116: 4240
A117: Servicios Académicos Renata53020 | B117: IT-RNT-RA-5.8 | C117: 1 | D117: Servicios Académicos Renata | E117: 5 | F117: 30 | G117: 20 | H117: Mes | I117: 11170000 | J117: 8170000 | K117: 7678000 | L117: 6136000 | M117: 5301000 | N117: 4671000 | O117: 4314000 | P117: 4153000 | Q117: 3910000 | R117: 3497000 | S117: 3340000 | T117: 3297000 | U117: 3175000 | V117: 3069000 | W117: 2975000 | X117: 2891000 | Y117: 2816000 | Z117: 2749000 | AA117: 2688000 | AB117: 2595000 | AC117: 2546000 | AD117: 2478000 | AE117: 4240
A118: Servicios Académicos Renata53515 | B118: IT-RNT-RA-5.9 | C118: 1 | D118: Servicios Académicos Renata | E118: 5 | F118: 35 | G118: 15 | H118: Mes | I118: 10345000 | J118: 7432000 | K118: 6954000 | L118: 5457000 | M118: 4646000 | N118: 4035000 | O118: 3689000 | P118: 3532000 | Q118: 3296000 | R118: 2895000 | S118: 2742000 | T118: 2701000 | U118: 2583000 | V118: 2479000 | W118: 2388000 | X118: 2307000 | Y118: 2234000 | Z118: 2169000 | AA118: 2110000 | AB118: 2020000 | AC118: 1972000 | AD118: 1905000 | AE118: 4240
A119: Servicios Académicos Renata5400 | B119: IT-RNT-RA-5.10 | C119: 1 | D119: Servicios Académicos Renata | E119: 5 | F119: 40 | G119: 0 | H119: Mes | I119: 7647000 | J119: 5355000 | K119: 4982000 | L119: 3803000 | M119: 3164000 | N119: 2683000 | O119: 2411000 | P119: 2289000 | Q119: 2103000 | R119: 1786000 | S119: 1666000 | T119: 1634000 | U119: 1541000 | V119: 1460000 | W119: 1388000 | X119: 1325000 | Y119: 1268000 | Z119: 1216000 | AA119: 1170000 | AB119: 1098000 | AC119: 1061000 | AD119: 1008000 | AE119: 4240
A120: Servicios Académicos Renata54010 | B120: IT-RNT-RA-5.11 | C120: 1 | D120: Servicios Académicos Renata | E120: 5 | F120: 40 | G120: 10 | H120: Mes | I120: 9668000 | J120: 6840000 | K120: 6376000 | L120: 4923000 | M120: 4136000 | N120: 3542000 | O120: 3206000 | P120: 3054000 | Q120: 2824000 | R120: 2435000 | S120: 2287000 | T120: 2247000 | U120: 2132000 | V120: 2032000 | W120: 1943000 | X120: 1864000 | Y120: 1794000 | Z120: 1731000 | AA120: 1673000 | AB120: 1586000 | AC120: 1539000 | AD120: 1475000 | AE120: 4240
A121: Servicios Académicos Renata54020 | B121: IT-RNT-RA-5.12 | C121: 1 | D121: Servicios Académicos Renata | E121: 5 | F121: 40 | G121: 20 | H121: Mes | I121: 11122000 | J121: 7930000 | K121: 7402000 | L121: 5763000 | M121: 4875000 | N121: 4205000 | O121: 3826000 | P121: 3653000 | Q121: 3394000 | R121: 2956000 | S121: 2789000 | T121: 2742000 | U121: 2613000 | V121: 2499000 | W121: 2399000 | X121: 2310000 | Y121: 2230000 | Z121: 2159000 | AA121: 2094000 | AB121: 1996000 | AC121: 1943000 | AD121: 1871000 | AE121: 4240
A122: Servicios Académicos Renata5500 | B122: IT-RNT-RA-5.13 | C122: 1 | D122: Servicios Académicos Renata | E122: 5 | F122: 50 | G122: 0 | H122: Mes | I122: 9137000 | J122: 6391000 | K122: 5940000 | L122: 4530000 | M122: 3765000 | N122: 3189000 | O122: 2863000 | P122: 2715000 | Q122: 2492000 | R122: 2114000 | S122: 1971000 | T122: 1932000 | U122: 1820000 | V122: 1723000 | W122: 1637000 | X122: 1560000 | Y122: 1492000 | Z122: 1430000 | AA122: 1374000 | AB122: 1289000 | AC122: 1244000 | AD122: 1182000 | AE122: 4240
A123: Servicios Académicos Renata55010 | B123: IT-RNT-RA-5.14 | C123: 1 | D123: Servicios Académicos Renata | E123: 5 | F123: 50 | G123: 10 | H123: Mes | I123: 10865000 | J123: 7672000 | K123: 7145000 | L123: 5506000 | M123: 4617000 | N123: 3948000 | O123: 3568000 | P123: 3395000 | Q123: 3136000 | R123: 2698000 | S123: 2531000 | T123: 2485000 | U123: 2355000 | V123: 2242000 | W123: 2141000 | X123: 2052000 | Y123: 1973000 | Z123: 1901000 | AA123: 1836000 | AB123: 1738000 | AC123: 1686000 | AD123: 1613000 | AE123: 4240
A124: Servicios Académicos Renata5600 | B124: IT-RNT-RA-5.15 | C124: 1 | D124: Servicios Académicos Renata | E124: 5 | F124: 60 | G124: 0 | H124: Mes | I124: 10298000 | J124: 7199000 | K124: 6687000 | L124: 5095000 | M124: 4232000 | N124: 3582000 | O124: 3214000 | P124: 3046000 | Q124: 2795000 | R124: 2370000 | S124: 2207000 | T124: 2162000 | U124: 2036000 | V124: 1926000 | W124: 1829000 | X124: 1743000 | Y124: 1665000 | Z124: 1596000 | AA124: 1533000 | AB124: 1437000 | AC124: 1386000 | AD124: 1316000 | AE124: 4240
A125: Servicios Académicos Renata56020 | B125: IT-RNT-RA-5.16 | C125: 1 | D125: Servicios Académicos Renata | E125: 5 | F125: 60 | G125: 20 | H125: Mes | I125: 14171000 | J125: 10131000 | K125: 9458000 | L125: 7387000 | M125: 6263000 | N125: 5417000 | O125: 4936000 | P125: 4716000 | Q125: 4388000 | R125: 3836000 | S125: 3625000 | T125: 3564000 | U125: 3400000 | V125: 3256000 | W125: 3129000 | X125: 3017000 | Y125: 2916000 | Z125: 2825000 | AA125: 2743000 | AB125: 2619000 | AC125: 2553000 | AD125: 2462000 | AE125: 4240
A126: Servicios Académicos Renata56030 | B126: IT-RNT-RA-5.17 | C126: 1 | D126: Servicios Académicos Renata | E126: 5 | F126: 60 | G126: 30 | H126: Mes | I126: 16638000 | J126: 12091000 | K126: 11330000 | L126: 8999000 | M126: 7734000 | N126: 6782000 | O126: 6241000 | P126: 5992000 | Q126: 5623000 | R126: 5003000 | S126: 4765000 | T126: 4696000 | U126: 4511000 | V126: 4349000 | W126: 4206000 | X126: 4080000 | Y126: 3966000 | Z126: 3864000 | AA126: 3771000 | AB126: 3632000 | AC126: 3558000 | AD126: 3455000 | AE126: 4240
A127: Servicios Académicos Renata5700 | B127: IT-RNT-RA-5.18 | C127: 1 | D127: Servicios Académicos Renata | E127: 5 | F127: 70 | G127: 0 | H127: Mes | I127: 11460000 | J127: 8006000 | K127: 7433000 | L127: 5661000 | M127: 4700000 | N127: 3976000 | O127: 3566000 | P127: 3378000 | Q127: 3097000 | R127: 2625000 | S127: 2444000 | T127: 2393000 | U127: 2253000 | V127: 2130000 | W127: 2022000 | X127: 1925000 | Y127: 1839000 | Z127: 1762000 | AA127: 1691000 | AB127: 1585000 | AC127: 1529000 | AD127: 1450000 | AE127: 4240
A128: Servicios Académicos Renata57010 | B128: IT-RNT-RA-5.19 | C128: 1 | D128: Servicios Académicos Renata | E128: 5 | F128: 70 | G128: 10 | H128: Mes | I128: 13258000 | J128: 9336000 | K128: 8682000 | L128: 6671000 | M128: 5580000 | N128: 4759000 | O128: 4292000 | P128: 4078000 | Q128: 3760000 | R128: 3224000 | S128: 3019000 | T128: 2960000 | U128: 2801000 | V128: 2661000 | W128: 2538000 | X128: 2429000 | Y128: 2331000 | Z128: 2243000 | AA128: 2163000 | AB128: 2043000 | AC128: 1978000 | AD128: 1890000 | AE128: 4240
A129: Servicios Académicos Renata57020 | B129: IT-RNT-RA-5.20 | C129: 1 | D129: Servicios Académicos Renata | E129: 5 | F129: 70 | G129: 20 | H129: Mes | I129: 15403000 | J129: 10988000 | K129: 10249000 | L129: 7987000 | M129: 6759000 | N129: 5834000 | O129: 5309000 | P129: 5067000 | Q129: 4709000 | R129: 4107000 | S129: 3876000 | T129: 3809000 | U129: 3630000 | V129: 3472000 | W129: 3334000 | X129: 3210000 | Y129: 3100000 | Z129: 3001000 | AA129: 2911000 | AB129: 2776000 | AC129: 2704000 | AD129: 2604000 | AE129: 4240
A130: Servicios Académicos Renata5800 | B130: IT-RNT-RA-5.21 | C130: 1 | D130: Servicios Académicos Renata | E130: 5 | F130: 80 | G130: 0 | H130: Mes | I130: 12621000 | J130: 8814000 | K130: 8179000 | L130: 6227000 | M130: 5168000 | N130: 4370000 | O130: 3917000 | P130: 3709000 | Q130: 3400000 | R130: 2880000 | S130: 2681000 | T130: 2624000 | U130: 2469000 | V130: 2334000 | W130: 2214000 | X130: 2108000 | Y130: 2013000 | Z130: 1927000 | AA130: 1850000 | AB130: 1733000 | AC130: 1671000 | AD130: 1585000 | AE130: 4240
A131: Servicios Académicos Renata58010 | B131: IT-RNT-RA-5.22 | C131: 1 | D131: Servicios Académicos Renata | E131: 5 | F131: 80 | G131: 10 | H131: Mes | I131: 14454000 | J131: 10168000 | K131: 9451000 | L131: 7254000 | M131: 6062000 | N131: 5164000 | O131: 4654000 | P131: 4420000 | Q131: 4071000 | R131: 3488000 | S131: 3263000 | T131: 3198000 | U131: 3024000 | V131: 2871000 | W131: 2736000 | X131: 2617000 | Y131: 2510000 | Z131: 2413000 | AA131: 2326000 | AB131: 2195000 | AC131: 2125000 | AD131: 2028000 | AE131: 4240
A132: Servicios Académicos Renata55020 | B132: IT-RNT-RA-5.23 | C132: 1 | D132: Servicios Académicos Renata | E132: 5 | F132: 50 | G132: 20 | H132: Mes | I132: 12319000 | J132: 8762000 | K132: 8171000 | L132: 6346000 | M132: 5356000 | N132: 4611000 | O132: 4188000 | P132: 3994000 | Q132: 3705000 | R132: 3219000 | S132: 3033000 | T132: 2980000 | U132: 2836000 | V132: 2709000 | W132: 2597000 | X132: 2498000 | Y132: 2409000 | Z132: 2330000 | AA132: 2257000 | AB132: 2148000 | AC132: 2090000 | AD132: 2009000 | AE132: 4240
A133: Servicios Académicos Renata55030 | B133: IT-RNT-RA-5.24 | C133: 1 | D133: Servicios Académicos Renata | E133: 5 | F133: 50 | G133: 30 | H133: Mes | I133: 15369000 | J133: 11208000 | K133: 10514000 | L133: 8381000 | M133: 7223000 | N133: 6352000 | O133: 5857000 | P133: 5630000 | Q133: 5292000 | R133: 4724000 | S133: 4506000 | T133: 4444000 | U133: 4275000 | V133: 4127000 | W133: 3996000 | X133: 3880000 | Y133: 3776000 | Z133: 3683000 | AA133: 3598000 | AB133: 3471000 | AC133: 3402000 | AD133: 3308000 | AE133: 4240
A134: Servicios Académicos Renata55040 | B134: IT-RNT-RA-5.25 | C134: 1 | D134: Servicios Académicos Renata | E134: 5 | F134: 50 | G134: 40 | H134: Mes | I134: 18167000 | J134: 13484000 | K134: 12700000 | L134: 10300000 | M134: 8997000 | N134: 8016000 | O134: 7459000 | P134: 7202000 | Q134: 6822000 | R134: 6184000 | S134: 5938000 | T134: 5868000 | U134: 5677000 | V134: 5510000 | W134: 5363000 | X134: 5232000 | Y134: 5115000 | Z134: 5010000 | AA134: 4915000 | AB134: 4772000 | AC134: 4695000 | AD134: 4589000 | AE134: 4240
A135: Servicios Académicos Renata5900 | B135: IT-RNT-RA-5.26 | C135: 1 | D135: Servicios Académicos Renata | E135: 5 | F135: 90 | G135: 0 | H135: Mes | I135: 13783000 | J135: 9622000 | K135: 8925000 | L135: 6793000 | M135: 5635000 | N135: 4764000 | O135: 4268000 | P135: 4041000 | Q135: 3703000 | R135: 3136000 | S135: 2918000 | T135: 2855000 | U135: 2685000 | V135: 2537000 | W135: 2407000 | X135: 2290000 | Y135: 2186000 | Z135: 2093000 | AA135: 2008000 | AB135: 1881000 | AC135: 1813000 | AD135: 1719000 | AE135: 4240
A136: Eduroam | B136: IT-RNT-EDR-1.1 | C136: 2 | D136: Eduroam | H136: Und | AE136: 698000
A137: Colfire | B137: IT-RNT-CLF-1.1 | C137: 3 | D137: Colfire | H137: Und | AE137: 778000
